Workbook

Sheet Data Analysis
D1: SUMIF function can add with one condition (criterion)
A4: SalesRep | B4: Sales | D4: Names | E4: Sum Sales
A5: Denise | B5: 111 | D5: Carol
A6: Thongtara | B6: 167 | D6: Christina
A7: Sykes | B7: 191 | D7: Craig
A8: Ewelina | B8: 110 | D8: Daniel
A9: Janita | B9: 146 | D9: Debra
A10: Elain | B10: 177 | D10: Denise
A11: Gianna | B11: 137 | D11: Elain
A12: Richard | B12: 116 | D12: Ewelina
A13: Elain | B13: 166 | D13: Gianna
A14: Michael | B14: 193 | D14: Janita
A15: Ewelina | B15: 105 | D15: Jason
A16: Michelle | B16: 189 | D16: Kaur
A17: Jason | B17: 122 | D17: Manavbir
A18: Craig | B18: 196 | D18: Mansa
A19: Sarah | B19: 161 | D19: Michael
A20: Mansa | B20: 197 | D20: Michelle
A21: Michelle | B21: 113 | D21: Mitchell
A22: Shari | B22: 111 | D22: Nelia
A23: Richard | B23: 164 | D23: Richard
A24: Christina | B24: 167 | D24: Sarah
A25: Denise | B25: 129 | D25: Shari
A26: Richard | B26: 122 | D26: Sykes
A27: Thongtara | B27: 132 | D27: Thongtara
A28: Michelle | B28: 178 | D28: Yla-Katrina
A29: Michelle | B29: 199
A30: Shari | B30: 181
A31: Carol | B31: 110
A32: Kaur | B32: 104
A33: Mitchell | B33: 110
A34: Debra | B34: 185
A35: Manavbir | B35: 183
A36: Sykes | B36: 143
A37: Elain | B37: 120
A38: Michelle | B38: 147
A39: Jason | B39: 117
A40: Mansa | B40: 128
A41: Shari | B41: 110
A42: Kaur | B42: 158
A43: Manavbir | B43: 133
A44: Debra | B44: 190
A45: Sarah | B45: 138
A46: Daniel | B46: 143
A47: Manavbir | B47: 167
A48: Thongtara | B48: 135
A49: Carol | B49: 125
A50: Janita | B50: 107
A51: Carol | B51: 162
A52: Thongtara | B52: 192
A53: Daniel | B53: 152
A54: Gianna | B54: 155
A55: Kaur | B55: 155
A56: Mansa | B56: 145
A57: Janita | B57: 149
A58: Kaur | B58: 180
A59: Yla-Katrina | B59: 190
A60: Richard | B60: 127
A61: Christina | B61: 114
A62: Carol | B62: 191
A63: Sykes | B63: 197
A64: Sykes | B64: 186
A65: Gianna | B65: 174
A66: Yla-Katrina | B66: 114
A67: Jason | B67: 121
A68: Debra | B68: 134
A69: Carol | B69: 174
A70: Craig | B70: 178
A71: Ewelina | B71: 132
A72: Sarah | B72: 148
A73: Michelle | B73: 120
A74: Thongtara | B74: 199
A75: Michelle | B75: 109
A76: Gianna | B76: 138
A77: Thongtara | B77: 153
A78: Janita | B78: 122
A79: Michael | B79: 154
A80: Jason | B80: 174
A81: Denise | B81: 181
A82: Sarah | B82: 113
A83: Nelia | B83: 177
A84: Mitchell | B84: 138
A85: Denise | B85: 175
A86: Ewelina | B86: 149
A87: Shari | B87: 140
A88: Michelle | B88: 152
A89: Jason | B89: 104
A90: Daniel | B90: 116
A91: Sykes | B91: 131
A92: Thongtara | B92: 135
A93: Michelle | B93: 164
A94: Manavbir | B94: 178
A95: Debra | B95: 139
A96: Carol | B96: 160
A97: Ewelina | B97: 162
A98: Shari | B98: 103
A99: Kaur | B99: 200
A100: Mansa | B100: 132
A101: Sarah | B101: 133
A102: Mansa | B102: 187
A103: Michael | B103: 173
A104: Sykes | B104: 112
A105: Daniel | B105: 132
A106: Sykes | B106: 112
A107: Daniel | B107: 131
A108: Craig | B108: 175
A109: Craig | B109: 158
A110: Ewelina | B110: 148
A111: Daniel | B111: 187
A112: Mansa | B112: 168
A113: Nelia | B113: 116
A114: Jason | B114: 122
A115: Debra | B115: 160
A116: Debra | B116: 192
A117: Christina | B117: 154
A118: Jason | B118: 145
A119: Richard | B119: 178
A120: Sarah | B120: 112
A121: Elain | B121: 115
A122: Mansa | B122: 146
A123: Debra | B123: 109
A124: Denise | B124: 172
A125: Daniel | B125: 146
A126: Richard | B126: 144
A127: Mitchell | B127: 146
A128: Kaur | B128: 105
A129: Ewelina | B129: 134
A130: Richard | B130: 118
A131: Debra | B131: 132
A132: Carol | B132: 117
A133: Michelle | B133: 194
A134: Debra | B134: 122
A135: Michelle | B135: 134
A136: Sykes | B136: 134
A137: Elain | B137: 125
A138: Carol | B138: 115
A139: Christina | B139: 105
A140: Christina | B140: 179
A141: Elain | B141: 114
A142: Elain | B142: 176
A143: Shari | B143: 194
A144: Mitchell | B144: 170
A145: Ewelina | B145: 144
A146: Christina | B146: 175
A147: Michelle | B147: 185
A148: Carol | B148: 133
A149: Sarah | B149: 131
A150: Mansa | B150: 163
A151: Denise | B151: 120
A152: Manavbir | B152: 136
A153: Gianna | B153: 195
A154: Yla-Katrina | B154: 157
A155: Michelle | B155: 187
A156: Christina | B156: 185
A157: Jason | B157: 154
A158: Jason | B158: 187
A159: Gianna | B159: 142
A160: Denise | B160: 132
A161: Mitchell | B161: 127
A162: Mansa | B162: 184
A163: Thongtara | B163: 164
A164: Sykes | B164: 157
A165: Craig | B165: 186
A166: Elain | B166: 135
A167: Janita | B167: 194
A168: Thongtara | B168: 177
A169: Mitchell | B169: 143
A170: Manavbir | B170: 152
A171: Nelia | B171: 101
A172: Janita | B172: 110
A173: Denise | B173: 124
A174: Christina | B174: 102
A175: Richard | B175: 139
A176: Janita | B176: 152
A177: Janita | B177: 168
A178: Michael | B178: 151
A179: Gianna | B179: 137
A180: Janita | B180: 104
A181: Nelia | B181: 139
A182: Daniel | B182: 147
A183: Mansa | B183: 190
A184: Nelia | B184: 159
A185: Manavbir | B185: 112
A186: Christina | B186: 182
A187: Richard | B187: 121
A188: Kaur | B188: 181
A189: Craig | B189: 104
A190: Sykes | B190: 194
A191: Christina | B191: 178
A192: Carol | B192: 142
A193: Mitchell | B193: 191
A194: Sarah | B194: 120
A195: Carol | B195: 155
A196: Manavbir | B196: 199
A197: Thongtara | B197: 106
A198: Elain | B198: 149
A199: Michelle | B199: 158
A200: Gianna | B200: 144
A201: Daniel | B201: 143
A202: Daniel | B202: 177
... 569 more rows

Sheet Data Analysis (an) (hidden)
D1: SUMIF function can add with one condition (criterion)
A4: SalesRep | B4: Sales | D4: Names | E4: Sum Sales
A5: Denise | B5: 111 | D5: Carol | E5: =SUMIF($A$5:$A$771,D5,$B$5:$B$771) -> 5085
A6: Thongtara | B6: 167 | D6: Christina | E6: 5592
A7: Sykes | B7: 191 | D7: Craig | E7: 4554 | H7: Row Labels | I7: Sum of Sales
A8: Ewelina | B8: 110 | D8: Daniel | E8: 5214 | H8: Carol | I8: 5085
A9: Janita | B9: 146 | D9: Debra | E9: 5226 | H9: Christina | I9: 5592
A10: Elain | B10: 177 | D10: Denise | E10: 5368 | H10: Craig | I10: 4554
A11: Gianna | B11: 137 | D11: Elain | E11: 5424 | H11: Daniel | I11: 5214
A12: Richard | B12: 116 | D12: Ewelina | E12: 5689 | H12: Debra | I12: 5226
A13: Elain | B13: 166 | D13: Gianna | E13: 3564 | H13: Denise | I13: 5368
A14: Michael | B14: 193 | D14: Janita | E14: 4089 | H14: Elain | I14: 5424
A15: Ewelina | B15: 105 | D15: Jason | E15: 5847 | H15: Ewelina | I15: 5689
A16: Michelle | B16: 189 | D16: Kaur | E16: 4415 | H16: Gianna | I16: 3564
A17: Jason | B17: 122 | D17: Manavbir | E17: 6654 | H17: Janita | I17: 4089
A18: Craig | B18: 196 | D18: Mansa | E18: 3645 | H18: Jason | I18: 5847
A19: Sarah | B19: 161 | D19: Michael | E19: 6001 | H19: Kaur | I19: 4415
A20: Mansa | B20: 197 | D20: Michelle | E20: 4769 | H20: Manavbir | I20: 6654
A21: Michelle | B21: 113 | D21: Mitchell | E21: 4078 | H21: Mansa | I21: 3645
A22: Shari | B22: 111 | D22: Nelia | E22: 3686 | H22: Michael | I22: 6001
A23: Richard | B23: 164 | D23: Richard | E23: 3802 | H23: Michelle | I23: 4769
A24: Christina | B24: 167 | D24: Sarah | E24: 3692 | H24: Mitchell | I24: 4078
A25: Denise | B25: 129 | D25: Shari | E25: 3845 | H25: Nelia | I25: 3686
A26: Richard | B26: 122 | D26: Sykes | E26: 4727 | H26: Richard | I26: 3802
A27: Thongtara | B27: 132 | D27: Thongtara | E27: 5489 | H27: Sarah | I27: 3692
A28: Michelle | B28: 178 | D28: Yla-Katrina | E28: 4160 | H28: Shari | I28: 3845
A29: Michelle | B29: 199 | H29: Sykes | I29: 4727
A30: Shari | B30: 181 | H30: Thongtara | I30: 5489
A31: Carol | B31: 110 | H31: Yla-Katrina | I31: 4160
A32: Kaur | B32: 104 | H32: Grand Total | I32: 114615
A33: Mitchell | B33: 110
A34: Debra | B34: 185
A35: Manavbir | B35: 183
A36: Sykes | B36: 143
A37: Elain | B37: 120
A38: Michelle | B38: 147
A39: Jason | B39: 117
A40: Mansa | B40: 128
A41: Shari | B41: 110
A42: Kaur | B42: 158
A43: Manavbir | B43: 133
A44: Debra | B44: 190
A45: Sarah | B45: 138
A46: Daniel | B46: 143
A47: Manavbir | B47: 167
A48: Thongtara | B48: 135
A49: Carol | B49: 125
A50: Janita | B50: 107
A51: Carol | B51: 162
A52: Thongtara | B52: 192
A53: Daniel | B53: 152
A54: Gianna | B54: 155
A55: Kaur | B55: 155
A56: Mansa | B56: 145
A57: Janita | B57: 149
A58: Kaur | B58: 180
A59: Yla-Katrina | B59: 190
A60: Richard | B60: 127
A61: Christina | B61: 114
A62: Carol | B62: 191
A63: Sykes | B63: 197
A64: Sykes | B64: 186
A65: Gianna | B65: 174
A66: Yla-Katrina | B66: 114
A67: Jason | B67: 121
A68: Debra | B68: 134
A69: Carol | B69: 174
A70: Craig | B70: 178
A71: Ewelina | B71: 132
A72: Sarah | B72: 148
A73: Michelle | B73: 120
A74: Thongtara | B74: 199
A75: Michelle | B75: 109
A76: Gianna | B76: 138
A77: Thongtara | B77: 153
A78: Janita | B78: 122
A79: Michael | B79: 154
A80: Jason | B80: 174
A81: Denise | B81: 181
A82: Sarah | B82: 113
A83: Nelia | B83: 177
A84: Mitchell | B84: 138
A85: Denise | B85: 175
A86: Ewelina | B86: 149
A87: Shari | B87: 140
A88: Michelle | B88: 152
A89: Jason | B89: 104
A90: Daniel | B90: 116
A91: Sykes | B91: 131
A92: Thongtara | B92: 135
A93: Michelle | B93: 164
A94: Manavbir | B94: 178
A95: Debra | B95: 139
A96: Carol | B96: 160
A97: Ewelina | B97: 162
A98: Shari | B98: 103
A99: Kaur | B99: 200
A100: Mansa | B100: 132
A101: Sarah | B101: 133
A102: Mansa | B102: 187
A103: Michael | B103: 173
A104: Sykes | B104: 112
A105: Daniel | B105: 132
A106: Sykes | B106: 112
A107: Daniel | B107: 131
A108: Craig | B108: 175
A109: Craig | B109: 158
A110: Ewelina | B110: 148
A111: Daniel | B111: 187
A112: Mansa | B112: 168
A113: Nelia | B113: 116
A114: Jason | B114: 122
A115: Debra | B115: 160
A116: Debra | B116: 192
A117: Christina | B117: 154
A118: Jason | B118: 145
A119: Richard | B119: 178
A120: Sarah | B120: 112
A121: Elain | B121: 115
A122: Mansa | B122: 146
A123: Debra | B123: 109
A124: Denise | B124: 172
A125: Daniel | B125: 146
A126: Richard | B126: 144
A127: Mitchell | B127: 146
A128: Kaur | B128: 105
A129: Ewelina | B129: 134
A130: Richard | B130: 118
A131: Debra | B131: 132
A132: Carol | B132: 117
A133: Michelle | B133: 194
A134: Debra | B134: 122
A135: Michelle | B135: 134
A136: Sykes | B136: 134
A137: Elain | B137: 125
A138: Carol | B138: 115
A139: Christina | B139: 105
A140: Christina | B140: 179
A141: Elain | B141: 114
A142: Elain | B142: 176
A143: Shari | B143: 194
A144: Mitchell | B144: 170
A145: Ewelina | B145: 144
A146: Christina | B146: 175
A147: Michelle | B147: 185
A148: Carol | B148: 133
A149: Sarah | B149: 131
A150: Mansa | B150: 163
A151: Denise | B151: 120
A152: Manavbir | B152: 136
A153: Gianna | B153: 195
A154: Yla-Katrina | B154: 157
A155: Michelle | B155: 187
A156: Christina | B156: 185
A157: Jason | B157: 154
A158: Jason | B158: 187
A159: Gianna | B159: 142
A160: Denise | B160: 132
A161: Mitchell | B161: 127
A162: Mansa | B162: 184
A163: Thongtara | B163: 164
A164: Sykes | B164: 157
A165: Craig | B165: 186
A166: Elain | B166: 135
A167: Janita | B167: 194
A168: Thongtara | B168: 177
A169: Mitchell | B169: 143
A170: Manavbir | B170: 152
A171: Nelia | B171: 101
A172: Janita | B172: 110
A173: Denise | B173: 124
A174: Christina | B174: 102
A175: Richard | B175: 139
A176: Janita | B176: 152
A177: Janita | B177: 168
A178: Michael | B178: 151
A179: Gianna | B179: 137
A180: Janita | B180: 104
A181: Nelia | B181: 139
A182: Daniel | B182: 147
A183: Mansa | B183: 190
A184: Nelia | B184: 159
A185: Manavbir | B185: 112
A186: Christina | B186: 182
A187: Richard | B187: 121
A188: Kaur | B188: 181
A189: Craig | B189: 104
A190: Sykes | B190: 194
A191: Christina | B191: 178
A192: Carol | B192: 142
A193: Mitchell | B193: 191
A194: Sarah | B194: 120
A195: Carol | B195: 155
A196: Manavbir | B196: 199
A197: Thongtara | B197: 106
A198: Elain | B198: 149
A199: Michelle | B199: 158
A200: Gianna | B200: 144
A201: Daniel | B201: 143
A202: Daniel | B202: 177
... 569 more rows

Sheet Number Format
A1: Ctrl + 1 opens Format Cells dialog box
A3: Format as Currency with Ctrl + Shift + 4 | C3: Format Numbers as dates
A4: Sales | C4: 1
A5: 11 | C5: 2
A6: 13 | C6: 40266 | D6: ==> this measn that all dates really are the number
A7: 11 | D7: of days since Dec 31, 1899, where 1/1/1900 is 1, etc…
A8: 19
A9: 15 | C9: Loan Due Date | D9: 2010-03-26
A10: 17 | C10: Today | D10: 2010-03-29
A11: 11 | C11: Days Past Due
A12: 12
A13: 19
A14: 20 | C14: 8/24 = ? | E14: Now format it is a time. Time is always a number between 0 and 1 - a decimal
A15: 13
A16: 16 | C16: Time In | D16: 05:00:00 | E16: When typing in time use : between hour and minutes and a
A17: 16 | C17: Time Out | D17: 19:00:00 | E17: space between the time and the AM or PM
A18: 17 | C18: Proportion of 24 hour day worked | E18: Format as General Number Format with keyboard Ctrl + Shift + ~
C19: Hours Worked | E19: Since time is a proportion of a 24 hour day, to get it back to
C20: Wage | E20: hours, multiply the decimal by 24
C21: Gross Pay without overtime

Sheet Number Format (an) (hidden)
A1: Ctrl + 1 opens Format Cells dialog box
A3: Format as Currency with Ctrl + Shift + 4 | C3: Format Numbers as dates
A4: Sales | C4: 1900-01-01
A5: 11 | C5: 1900-01-02
A6: 13 | C6: 2010-03-29 | D6: ==> this measn that all dates really are the number
A7: 11 | D7: of days since Dec 31, 1899, where 1/1/1900 is 1, etc…
A8: 19
A9: 15 | C9: Loan Due Date | D9: 2010-03-26
A10: 17 | C10: Today | D10: 2010-03-29
A11: 11 | C11: Days Past Due | D11: =D10-D9 -> 3
A12: 12
A13: 19
A14: 20 | C14: 8/24 = ? | D14: =8/24 -> 08:00:00 | E14: Now format it is a time. Time is always a number between 0 and 1 - a decimal
A15: 13
A16: 16 | C16: Time In | D16: 05:00:00 | E16: When typing in time use : between hour and minutes and a
A17: 16 | C17: Time Out | D17: 19:00:00 | E17: space between the time and the AM or PM
A18: 17 | C18: Proportion of 24 hour day worked | D18: =D17-D16 -> 14:00:00 | E18: Format as General Number Format with keyboard Ctrl + Shift + ~
C19: Hours Worked | D19: =D18*24 -> 14 | E19: Since time is a proportion of a 24 hour day, to get it back to
C20: Wage | D20: 18.75 | E20: hours, multiply the decimal by 24
C21: Gross Pay without overtime | D21: =D20*D19 -> 262.5

Sheet Formula(1)
A1: This is a formula because the 1st character in the cell is an equal sign and the cell does not have Text Number format | D1: What is a formula? If you have an equal sign as the first
A2: Sales | B2: 100 | D2: character in a cell and the cell is not pre-formatted with the
A3: Expenses | B3: 91.25 | D3: Text Number format, it’s a formula!
A4: Net Income | B4: =B2-B3 -> 8.75
A6: This is NOT a formula because the 1st character in the cell is a space
A7: Sales | B7: 100
A8: Expenses | B8: 91.25 | D8: LEN function tells how many characters are in the cell
A9: Net Income | B9: =B7-B8 | D9: =LEN(B9) -> 7
A11: This is NOT a formula because the Text Number format has been applied to the cell
A12: Sales | B12: 100
A13: Expenses | B13: 91.25
A14: Net Income | B14: =B12-B13

Sheet Formula(2)
A1: Equal Sign, Cell References And Math Operator (Multiply *)
A2: Item | B2: 2 x 4 pine lumber
A3: ="Number of "&B2 -> Number of 2 x 4 pine lumber | B3: 20
A4: ="Price per "&B2 -> Price per 2 x 4 pine lumber | B4: 3.59
A5: Subtotal
A7: Equal Sign, Cell Reference, Math Operator, Number
A8: Annual Insurance | B8: 5250
A9: Monthly Allocation
A11: Equal Sign, Built-in Function, Range of Cells
A12: Student 1 | B12: 88.5
A13: Student 2 | B13: 92
A14: Student 3 | B14: 67
A15: Student 4 | B15: 78
A16: Average
A18: Equal Sign, Cell Reference, Math Operator, Built-in Function
A19: Revenue | B19: 15000
A20: Administrative Expense | B20: 4590
A21: Operational Expenses | B21: 8022
A22: Other Expenses | B22: 78
A23: Net Income
A25: Equal Sign, Cell Reference, Comparative Operators
A26: DR | B26: CR
A27: 10.01 | B27: 10
A28: 10 | B28: 10
A29: 10 | B29: 10
A32: In Balance?
A34: Equal Sign, Cell Reference, Join Symbol (Ampersand = Shift + 7 = &), Text in Quotes
A35: First | B35: Last | C35: First & Last
A36: Bill | B36: Droke
A37: Tina | B37: Smith
A38: Sioux | B38: Lim
A39: Sue | B39: Chin
A40: Luong | B40: Pham
A42: Sales | C42: Hurdle
A43: 512 | C43: 394.99
A44: 400 | C44: ="Number of Sales Greater Than "&DOLLAR(C43) -> Number of Sales Greater Than $394.99 | E44: <== Equal Sign, Text in Quotes, Join Symbol, Cell References, DOLLAR function
A45: 395 | E45: <== Equal Sign, COUNTIF Function, Cell Range, Text in Quotes, Join Symbol, Cell Reference
A46: 875
A47: 652 | C47: The COUNTIF function can count with one condition (criterion)
A48: 395

Sheet Formula(2an) (hidden)
A1: Equal Sign, Cell References And Math Operator (Multiply *)
A2: Item | B2: 2 x 4 pine lumber
A3: ="Number of "&B2 -> Number of 2 x 4 pine lumber | B3: 20
A4: ="Price per "&B2 -> Price per 2 x 4 pine lumber | B4: 3.59
A5: Subtotal | B5: =B4*B3 -> 71.8
A7: Equal Sign, Cell Reference, Math Operator, Number
A8: Annual Insurance | B8: 5250
A9: Monthly Allocation | B9: =B8/12 -> 437.5
A11: Equal Sign, Built-in Function, Range of Cells
A12: Student 1 | B12: 88.5
A13: Student 2 | B13: 92
A14: Student 3 | B14: 67
A15: Student 4 | B15: 78
A16: Average | B16: =AVERAGE(B12:B15) -> 81.375
A18: Equal Sign, Cell Reference, Math Operator, Built-in Function
A19: Revenue | B19: 15000
A20: Administrative Expense | B20: 4590
A21: Operational Expenses | B21: 8022
A22: Other Expenses | B22: 78
A23: Net Income | B23: =B19-SUM(B20:B22) -> 2310
A25: Equal Sign, Cell Reference, Comparative Operators
A26: DR | B26: CR
A27: 200 | B27: 200
A28: 50.01 | B28: 50.01
A29: 22.101 | B29: 22.1
A30: =SUM(A27:A29) -> 272.111 | B30: =SUM(B27:B29) -> 272.11
A32: In Balance? | B32: =A30=B30 -> FALSE
A34: Equal Sign, Cell Reference, Join Symbol (Ampersand = Shift + 7 = &), Text in Quotes
A35: First | B35: Last | C35: First & Last
A36: Bill | B36: Droke | C36: =A36&" "&B36 -> Bill Droke
A37: Tina | B37: Smith | C37: =A37&" "&B37 -> Tina Smith
A38: Sioux | B38: Lim | C38: Sioux Lim
A39: Sue | B39: Chin | C39: Sue Chin
A40: Luong | B40: Pham | C40: Luong Pham
A42: Sales | C42: Hurdle
A43: 512 | C43: 394.99
A44: 400 | C44: ="Number of Sales Greater Than "&DOLLAR(C43) -> Number of Sales Greater Than $394.99 | E44: <== Equal Sign, Text in Quotes, Join Symbol, Cell References, DOLLAR function
A45: 395 | C45: =COUNTIF(A43:A48,">"&C43) -> 6 | E45: <== Equal Sign, COUNTIF Function, Cell Range, Text in Quotes, Join Symbol, Cell Reference
A46: 875
A47: 652 | C47: The COUNTIF function can count with one condition (criterion)
A48: 395

Sheet Cell References
A1: Assumption Table contains Formula Inputs
A2: Commission Rate | B2: 0.045
A4: SalesRep | B4: Sales | C4: Earned Commission
A5: Elain | B5: 1161
A6: Carol | B6: 1321
A7: Gianna | B7: 1039
A8: Jason | B8: 1761
A9: Michelle | B9: 1561
A10: Shari | B10: 1868
A11: Denise | B11: 2787
A12: Daniel | B12: 1849
A13: Sarah | B13: 2627
A14: Christina | B14: 2165
A15: Janita | B15: 1589
A16: Debra | B16: 2603
A17: Nelia | B17: 2366
A18: Manavbir | B18: 2107
A19: Richard | B19: 2886
A20: Yla-Katrina | B20: 1886
A21: Kaur | B21: 2177
A22: Mansa | B22: 1873
A23: Mitchell | B23: 2164
A24: Craig | B24: 1394
A25: Sykes | B25: 2263
A26: Ewelina | B26: 2242
A27: Michael | B27: 1474
A28: Thongtara | B28: 1998

Sheet Cell References (an) (hidden)
A1: Assumption Table contains Formula Inputs
A2: Commission Rate | B2: 0.045
A4: SalesRep | B4: Sales | C4: Earned Commision
A5: Elain | B5: 1161 | C5: =B5*B$2 -> 52.245
A6: Carol | B6: 1321 | C6: =B6*B$2 -> 59.445
A7: Gianna | B7: 1039 | C7: 46.755
A8: Jason | B8: 1761 | C8: 79.245
A9: Michelle | B9: 1561 | C9: 70.245
A10: Shari | B10: 1868 | C10: 84.06
A11: Denise | B11: 2787 | C11: 125.415
A12: Daniel | B12: 1849 | C12: 83.205
A13: Sarah | B13: 2627 | C13: 118.215
A14: Christina | B14: 2165 | C14: 97.425
A15: Janita | B15: 1589 | C15: 71.505
A16: Debra | B16: 2603 | C16: 117.135
A17: Nelia | B17: 2366 | C17: 106.47
A18: Manavbir | B18: 2107 | C18: 94.815
A19: Richard | B19: 2886 | C19: 129.87
A20: Yla-Katrina | B20: 1886 | C20: 84.87
A21: Kaur | B21: 2177 | C21: 97.965
A22: Mansa | B22: 1873 | C22: 84.285
A23: Mitchell | B23: 2164 | C23: 97.38
A24: Craig | B24: 1394 | C24: 62.73
A25: Sykes | B25: 2263 | C25: 101.835
A26: Ewelina | B26: 2242 | C26: 100.89
A27: Michael | B27: 1474 | C27: 66.33
A28: Thongtara | B28: 1998 | C28: 89.91

Sheet CR(1)
B1: January | C1: February | D1: March | E1: April | F1: May | G1: June
A2: Revenue | B2: 20000
A4: Increase each month | B4: 1.015

Sheet CR(1an) (hidden)
B1: January | C1: February | D1: March | E1: April | F1: May | G1: June
A2: Revenue | B2: 20000 | C2: =B2*$B4 -> 20300 | D2: =C2*$B4 -> 20604.5 | E2: 20913.5675 | F2: 21227.27101 | G2: =F2*$B4 -> 21545.68008
A4: Increase each month | B4: 1.015

Sheet CR(2)
B1: Multiplication Table
B2: Column Headers
A3: Row Headers | C3: =COLUMNS($C3:C3) -> 1 | D3: =COLUMNS($C3:D3) -> 2 | E3: =COLUMNS($C3:E3) -> 3 | F3: =COLUMNS($C3:F3) -> 4 | G3: =COLUMNS($C3:G3) -> 5 | H3: =COLUMNS($C3:H3) -> 6 | I3: =COLUMNS($C3:I3) -> 7 | J3: =COLUMNS($C3:J3) -> 8 | K3: =COLUMNS($C3:K3) -> 9 | L3: =COLUMNS($C3:L3) -> 10 | M3: =COLUMNS($C3:M3) -> 11 | N3: =COLUMNS($C3:N3) -> 12
B4: =ROWS(B$4:B4) -> 1
B5: =ROWS(B$4:B5) -> 2
B6: =ROWS(B$4:B6) -> 3
B7: =ROWS(B$4:B7) -> 4
B8: =ROWS(B$4:B8) -> 5
B9: =ROWS(B$4:B9) -> 6
B10: =ROWS(B$4:B10) -> 7
B11: =ROWS(B$4:B11) -> 8
B12: =ROWS(B$4:B12) -> 9
B13: =ROWS(B$4:B13) -> 10
B14: =ROWS(B$4:B14) -> 11
B15: =ROWS(B$4:B15) -> 12

Sheet CR(2an) (hidden)
B1: Multiplication Table
B2: Column Headers
A3: Row Headers | C3: =COLUMNS($C3:C3) -> 1 | D3: =COLUMNS($C3:D3) -> 2 | E3: =COLUMNS($C3:E3) -> 3 | F3: =COLUMNS($C3:F3) -> 4 | G3: =COLUMNS($C3:G3) -> 5 | H3: =COLUMNS($C3:H3) -> 6 | I3: =COLUMNS($C3:I3) -> 7 | J3: =COLUMNS($C3:J3) -> 8 | K3: =COLUMNS($C3:K3) -> 9 | L3: =COLUMNS($C3:L3) -> 10 | M3: =COLUMNS($C3:M3) -> 11 | N3: =COLUMNS($C3:N3) -> 12
B4: =ROWS(B$4:B4) -> 1 | C4: =C$3*$B4 -> 1 | D4: 2 | E4: 3 | F4: 4 | G4: 5 | H4: 6 | I4: 7 | J4: 8 | K4: 9 | L4: 10 | M4: 11 | N4: 12
B5: =ROWS(B$4:B5) -> 2 | C5: 2 | D5: 4 | E5: 6 | F5: 8 | G5: 10 | H5: 12 | I5: 14 | J5: 16 | K5: 18 | L5: 20 | M5: 22 | N5: 24
B6: =ROWS(B$4:B6) -> 3 | C6: 3 | D6: 6 | E6: 9 | F6: 12 | G6: 15 | H6: 18 | I6: 21 | J6: 24 | K6: 27 | L6: 30 | M6: 33 | N6: 36
B7: =ROWS(B$4:B7) -> 4 | C7: 4 | D7: 8 | E7: 12 | F7: 16 | G7: 20 | H7: 24 | I7: 28 | J7: 32 | K7: 36 | L7: 40 | M7: 44 | N7: 48
B8: =ROWS(B$4:B8) -> 5 | C8: 5 | D8: 10 | E8: 15 | F8: 20 | G8: 25 | H8: 30 | I8: 35 | J8: 40 | K8: 45 | L8: 50 | M8: 55 | N8: 60
B9: =ROWS(B$4:B9) -> 6 | C9: 6 | D9: 12 | E9: 18 | F9: 24 | G9: 30 | H9: 36 | I9: 42 | J9: 48 | K9: 54 | L9: 60 | M9: 66 | N9: 72
B10: =ROWS(B$4:B10) -> 7 | C10: 7 | D10: 14 | E10: 21 | F10: 28 | G10: 35 | H10: 42 | I10: 49 | J10: 56 | K10: 63 | L10: 70 | M10: 77 | N10: 84
B11: =ROWS(B$4:B11) -> 8 | C11: 8 | D11: 16 | E11: 24 | F11: 32 | G11: 40 | H11: 48 | I11: 56 | J11: 64 | K11: 72 | L11: 80 | M11: 88 | N11: 96
B12: =ROWS(B$4:B12) -> 9 | C12: 9 | D12: 18 | E12: 27 | F12: 36 | G12: 45 | H12: 54 | I12: 63 | J12: 72 | K12: 81 | L12: 90 | M12: 99 | N12: 108
B13: =ROWS(B$4:B13) -> 10 | C13: 10 | D13: 20 | E13: 30 | F13: 40 | G13: 50 | H13: 60 | I13: 70 | J13: 80 | K13: 90 | L13: 100 | M13: 110 | N13: 120
B14: =ROWS(B$4:B14) -> 11 | C14: 11 | D14: 22 | E14: 33 | F14: 44 | G14: 55 | H14: 66 | I14: 77 | J14: 88 | K14: 99 | L14: 110 | M14: 121 | N14: 132
B15: =ROWS(B$4:B15) -> 12 | C15: 12 | D15: 24 | E15: 36 | F15: 48 | G15: 60 | H15: 72 | I15: 84 | J15: 96 | K15: 108 | L15: 120 | M15: 132 | N15: =N$3*$B15 -> 144

Sheet CR(3)
A1: Budget
B2: Jan | C2: Feb | D2: Mar | E2: Apr | F2: May | G2: Jun | H2: Total
A3: Revenue | B3: 1000 | C3: 1250 | D3: 1370 | E3: 1250 | F3: 2000 | G3: 2215 | H3: =SUM(B3:G3) -> 9085
A4: =A14 -> Expense1 | H4: 0
A5: Expense2 | H5: 0
A6: Expense3 | H6: 0
A7: Expense4 | H7: 0
A8: Expense5 | H8: 0
A9: Expense6 | H9: 0
A10: Total Expenses | B10: =SUM(B4:B9) -> 0 | C10: 0 | D10: 0 | E10: 0 | F10: 0 | G10: 0 | H10: 0
A11: Net Income | B11: =B3-B10 -> 1000 | C11: 1250 | D11: 1370 | E11: 1250 | F11: 2000 | G11: 2215 | H11: 9085
A13: Assumptions - Formula Inputs
A14: Expense1 | B14: 0.05
A15: Expense2 | B15: 0.075
A16: Expense3 | B16: 0.155
A17: Expense4 | B17: 0.225
A18: Expense5 | B18: 0.045
A19: Expense6 | B19: 0.12
A21: Assumptions - Formula Inputs
A22: Expense1 | B22: Expense2 | C22: Expense3 | D22: Expense4 | E22: Expense5 | F22: Expense6
A23: 0.05 | B23: 0.075 | C23: 0.155 | D23: 0.225 | E23: 0.045 | F23: 0.12

Sheet CR(3an) (hidden)
A1: Budget
B2: Jan | C2: Feb | D2: Mar | E2: Apr | F2: May | G2: Jun | H2: Total
A3: Revenue | B3: 1000 | C3: 1250 | D3: 1370 | E3: 1250 | F3: 2000 | G3: 2215 | H3: =SUM(B3:G3) -> 9085
A4: =A14 -> Expense1 | B4: =B$3*$B14 -> 50 | C4: 62.5 | D4: 68.5 | E4: 62.5 | F4: 100 | G4: 110.75 | H4: 454.25
A5: Expense2 | B5: 75 | C5: 93.75 | D5: 102.75 | E5: 93.75 | F5: 150 | G5: 166.125 | H5: 681.375
A6: Expense3 | B6: 155 | C6: 193.75 | D6: 212.35 | E6: 193.75 | F6: 310 | G6: 343.325 | H6: 1408.175
A7: Expense4 | B7: 225 | C7: 281.25 | D7: 308.25 | E7: 281.25 | F7: 450 | G7: 498.375 | H7: 2044.125
A8: Expense5 | B8: 45 | C8: 56.25 | D8: 61.65 | E8: 56.25 | F8: 90 | G8: 99.675 | H8: 408.825
A9: Expense6 | B9: 120 | C9: 150 | D9: 164.4 | E9: 150 | F9: 240 | G9: =G$3*$B19 -> 265.8 | H9: 1090.2
A10: Total Expenses | B10: =SUM(B4:B9) -> 670 | C10: 837.5 | D10: 917.9 | E10: 837.5 | F10: 1340 | G10: 1484.05 | H10: 6086.95
A11: Net Income | B11: =B3-B10 -> 330 | C11: 412.5 | D11: 452.1 | E11: 412.5 | F11: 660 | G11: 730.95 | H11: 2998.05
A13: Assumptions - Formula Inputs
A14: Expense1 | B14: 0.05
A15: Expense2 | B15: 0.075
A16: Expense3 | B16: 0.155
A17: Expense4 | B17: 0.225
A18: Expense5 | B18: 0.045
A19: Expense6 | B19: 0.12
A21: Assumptions - Formula Inputs
A22: Expense1 | B22: Expense2 | C22: Expense3 | D22: Expense4 | E22: Expense5 | F22: Expense6
A23: 0.05 | B23: 0.075 | C23: 0.155 | D23: 0.225 | E23: 0.045 | F23: 0.12

Sheet DA-Sort
G1: Data Analysis Data Set Rules:
A2: Date | B2: SalesRep | C2: Sales | D2: Product (boomerangs) | F2: 1 | G2: Field names (column headers) are in first row of data set
A3: 2010-05-21 | B3: Denise | C3: 111 | D3: Bellen | F3: 2 | G3: Records are in rows (Records are things like transactions or student information in a data base)
A4: 2010-04-30 | B4: Thongtara | C4: 167 | D4: Bellen | F4: 3 | G4: Blank cells or row headers or column headers surround entire data set
A5: 2010-04-19 | B5: Sykes | C5: 191 | D5: Sunshine | F5: 4 | G5: No blanks in data set or field names (not 100% mandatory, but if you don't there will be some problems).
A6: 2010-06-17 | B6: Ewelina | C6: 110 | D6: Carlota | F6: 5 | G6: Use Data Analysis Ribbon in Excel 2007
A7: 2010-07-22 | B7: Janita | C7: 146 | D7: Carlota
A8: 2010-05-16 | B8: Elain | C8: 177 | D8: Sunshine | G8: Sorting key:
A9: 2010-06-05 | B9: Gianna | C9: 137 | D9: Carlota | G9: Click in only one cell before sorting
A10: 2010-05-13 | B10: Richard | C10: 116 | D10: Bellen | G10: If you want to sort more than one column, leave the major sort until last
A11: 2010-05-14 | B11: Elain | C11: 166 | D11: Sunshine
A12: 2010-06-12 | B12: Michael | C12: 193 | D12: Bellen
A13: 2010-05-22 | B13: Ewelina | C13: 105 | D13: Sunset
A14: 2010-07-19 | B14: Michelle | C14: 189 | D14: Carlota
A15: 2010-05-12 | B15: Jason | C15: 122 | D15: Majestic Beaut
A16: 2010-06-05 | B16: Craig | C16: 196 | D16: Sunshine
A17: 2010-05-23 | B17: Sarah | C17: 161 | D17: Sunshine
A18: 2010-05-29 | B18: Mansa | C18: 197 | D18: Majestic Beaut
A19: 2010-07-21 | B19: Michelle | C19: 113 | D19: Sunset
A20: 2010-06-30 | B20: Shari | C20: 111 | D20: Bellen
A21: 2010-04-19 | B21: Richard | C21: 164 | D21: Sunshine
A22: 2010-06-19 | B22: Christina | C22: 167 | D22: Majestic Beaut
A23: 2010-07-01 | B23: Denise | C23: 129 | D23: Bellen
A24: 2010-04-29 | B24: Richard | C24: 122 | D24: Sunshine
A25: 2010-03-27 | B25: Thongtara | C25: 132 | D25: Sunshine
A26: 2010-04-13 | B26: Michelle | C26: 178 | D26: Carlota
A27: 2010-07-18 | B27: Michelle | C27: 199 | D27: Bellen
A28: 2010-05-27 | B28: Shari | C28: 181 | D28: Majestic Beaut
A29: 2010-06-15 | B29: Carol | C29: 110 | D29: Carlota
A30: 2010-04-08 | B30: Kaur | C30: 104 | D30: Sunset
A31: 2010-06-23 | B31: Mitchell | C31: 110 | D31: Sunshine
A32: 2010-06-21 | B32: Debra | C32: 185 | D32: Carlota
A33: 2010-05-01 | B33: Manavbir | C33: 183 | D33: Sunset
A34: 2010-07-07 | B34: Sykes | C34: 143 | D34: Sunset
A35: 2010-07-12 | B35: Elain | C35: 120 | D35: Carlota
A36: 2010-06-22 | B36: Michelle | C36: 147 | D36: Sunshine
A37: 2010-05-15 | B37: Jason | C37: 117 | D37: Sunshine
A38: 2010-03-31 | B38: Mansa | C38: 128 | D38: Bellen
A39: 2010-04-16 | B39: Shari | C39: 110 | D39: Sunshine
A40: 2010-05-23 | B40: Kaur | C40: 158 | D40: Carlota
A41: 2010-04-09 | B41: Manavbir | C41: 133 | D41: Sunset
A42: 2010-05-17 | B42: Debra | C42: 190 | D42: Majestic Beaut
A43: 2010-07-13 | B43: Sarah | C43: 138 | D43: Sunshine
A44: 2010-04-01 | B44: Daniel | C44: 143 | D44: Sunset
A45: 2010-04-12 | B45: Manavbir | C45: 167 | D45: Carlota
A46: 2010-04-02 | B46: Thongtara | C46: 135 | D46: Carlota
A47: 2010-05-22 | B47: Carol | C47: 125 | D47: Sunshine
A48: 2010-07-08 | B48: Janita | C48: 107 | D48: Carlota
A49: 2010-06-10 | B49: Carol | C49: 162 | D49: Bellen
A50: 2010-07-13 | B50: Thongtara | C50: 192 | D50: Majestic Beaut
A51: 2010-06-05 | B51: Daniel | C51: 152 | D51: Carlota
A52: 2010-04-28 | B52: Gianna | C52: 155 | D52: Majestic Beaut
A53: 2010-07-08 | B53: Kaur | C53: 155 | D53: Sunshine
A54: 2010-05-06 | B54: Mansa | C54: 145 | D54: Sunshine
A55: 2010-07-10 | B55: Janita | C55: 149 | D55: Carlota
A56: 2010-06-24 | B56: Kaur | C56: 180 | D56: Sunset
A57: 2010-05-07 | B57: Yla-Katrina | C57: 190 | D57: Bellen
A58: 2010-07-01 | B58: Richard | C58: 127 | D58: Sunset
A59: 2010-03-30 | B59: Christina | C59: 114 | D59: Carlota
A60: 2010-04-18 | B60: Carol | C60: 191 | D60: Majestic Beaut
A61: 2010-07-02 | B61: Sykes | C61: 197 | D61: Sunshine
A62: 2010-05-09 | B62: Sykes | C62: 186 | D62: Bellen
A63: 2010-06-10 | B63: Gianna | C63: 174 | D63: Carlota
A64: 2010-05-29 | B64: Yla-Katrina | C64: 114 | D64: Carlota
A65: 2010-07-05 | B65: Jason | C65: 121 | D65: Bellen
A66: 2010-03-28 | B66: Debra | C66: 134 | D66: Sunshine
A67: 2010-06-15 | B67: Carol | C67: 174 | D67: Carlota
A68: 2010-05-06 | B68: Craig | C68: 178 | D68: Majestic Beaut
A69: 2010-06-01 | B69: Ewelina | C69: 132 | D69: Sunshine
A70: 2010-06-02 | B70: Sarah | C70: 148 | D70: Carlota
A71: 2010-04-05 | B71: Michelle | C71: 120 | D71: Sunset
A72: 2010-06-01 | B72: Thongtara | C72: 199 | D72: Sunshine
A73: 2010-03-31 | B73: Michelle | C73: 109 | D73: Majestic Beaut
A74: 2010-06-27 | B74: Gianna | C74: 138 | D74: Carlota
A75: 2010-05-27 | B75: Thongtara | C75: 153 | D75: Bellen
A76: 2010-06-19 | B76: Janita | C76: 122 | D76: Bellen
A77: 2010-07-21 | B77: Michael | C77: 154 | D77: Bellen
A78: 2010-06-19 | B78: Jason | C78: 174 | D78: Sunset
A79: 2010-07-14 | B79: Denise | C79: 181 | D79: Bellen
A80: 2010-06-25 | B80: Sarah | C80: 113 | D80: Bellen
A81: 2010-04-01 | B81: Nelia | C81: 177 | D81: Sunset
A82: 2010-07-12 | B82: Mitchell | C82: 138 | D82: Majestic Beaut
A83: 2010-05-21 | B83: Denise | C83: 175 | D83: Bellen
A84: 2010-04-16 | B84: Ewelina | C84: 149 | D84: Majestic Beaut
A85: 2010-05-11 | B85: Shari | C85: 140 | D85: Majestic Beaut
A86: 2010-05-03 | B86: Michelle | C86: 152 | D86: Carlota
A87: 2010-04-20 | B87: Jason | C87: 104 | D87: Bellen
A88: 2010-06-07 | B88: Daniel | C88: 116 | D88: Majestic Beaut
A89: 2010-05-06 | B89: Sykes | C89: 131 | D89: Carlota
A90: 2010-04-07 | B90: Thongtara | C90: 135 | D90: Sunshine
A91: 2010-06-04 | B91: Michelle | C91: 164 | D91: Sunset
A92: 2010-03-27 | B92: Manavbir | C92: 178 | D92: Sunset
A93: 2010-04-08 | B93: Debra | C93: 139 | D93: Sunshine
A94: 2010-05-04 | B94: Carol | C94: 160 | D94: Carlota
A95: 2010-07-07 | B95: Ewelina | C95: 162 | D95: Bellen
A96: 2010-06-19 | B96: Shari | C96: 103 | D96: Sunshine
A97: 2010-05-09 | B97: Kaur | C97: 200 | D97: Carlota
A98: 2010-04-21 | B98: Mansa | C98: 132 | D98: Sunset
A99: 2010-04-12 | B99: Sarah | C99: 133 | D99: Sunshine
A100: 2010-06-23 | B100: Mansa | C100: 187 | D100: Majestic Beaut
A101: 2010-07-22 | B101: Michael | C101: 173 | D101: Majestic Beaut
A102: 2010-06-07 | B102: Sykes | C102: 112 | D102: Sunshine
A103: 2010-04-22 | B103: Daniel | C103: 132 | D103: Bellen
A104: 2010-04-27 | B104: Sykes | C104: 112 | D104: Sunset
A105: 2010-04-23 | B105: Daniel | C105: 131 | D105: Carlota
A106: 2010-05-25 | B106: Craig | C106: 175 | D106: Sunshine
A107: 2010-07-19 | B107: Craig | C107: 158 | D107: Sunshine
A108: 2010-04-26 | B108: Ewelina | C108: 148 | D108: Bellen
A109: 2010-06-09 | B109: Daniel | C109: 187 | D109: Sunset
A110: 2010-07-07 | B110: Mansa | C110: 168 | D110: Majestic Beaut
A111: 2010-04-25 | B111: Nelia | C111: 116 | D111: Majestic Beaut
A112: 2010-03-26 | B112: Jason | C112: 122 | D112: Carlota
A113: 2010-05-21 | B113: Debra | C113: 160 | D113: Sunshine
A114: 2010-05-13 | B114: Debra | C114: 192 | D114: Carlota
A115: 2010-05-19 | B115: Christina | C115: 154 | D115: Sunset
A116: 2010-04-06 | B116: Jason | C116: 145 | D116: Sunshine
A117: 2010-05-03 | B117: Richard | C117: 178 | D117: Sunshine
A118: 2010-05-04 | B118: Sarah | C118: 112 | D118: Sunset
A119: 2010-07-04 | B119: Elain | C119: 115 | D119: Carlota
A120: 2010-05-25 | B120: Mansa | C120: 146 | D120: Carlota
A121: 2010-06-15 | B121: Debra | C121: 109 | D121: Majestic Beaut
A122: 2010-07-21 | B122: Denise | C122: 172 | D122: Carlota
A123: 2010-05-22 | B123: Daniel | C123: 146 | D123: Sunshine
A124: 2010-06-30 | B124: Richard | C124: 144 | D124: Bellen
A125: 2010-06-23 | B125: Mitchell | C125: 146 | D125: Carlota
A126: 2010-04-28 | B126: Kaur | C126: 105 | D126: Sunshine
A127: 2010-06-25 | B127: Ewelina | C127: 134 | D127: Carlota
A128: 2010-07-11 | B128: Richard | C128: 118 | D128: Carlota
A129: 2010-07-10 | B129: Debra | C129: 132 | D129: Bellen
A130: 2010-05-27 | B130: Carol | C130: 117 | D130: Sunset
A131: 2010-04-03 | B131: Michelle | C131: 194 | D131: Carlota
A132: 2010-04-27 | B132: Debra | C132: 122 | D132: Sunshine
A133: 2010-06-29 | B133: Michelle | C133: 134 | D133: Sunset
A134: 2010-07-11 | B134: Sykes | C134: 134 | D134: Sunshine
A135: 2010-03-30 | B135: Elain | C135: 125 | D135: Sunset
A136: 2010-04-05 | B136: Carol | C136: 115 | D136: Majestic Beaut
A137: 2010-04-04 | B137: Christina | C137: 105 | D137: Sunset
A138: 2010-06-24 | B138: Christina | C138: 179 | D138: Bellen
A139: 2010-06-22 | B139: Elain | C139: 114 | D139: Sunset
A140: 2010-06-06 | B140: Elain | C140: 176 | D140: Carlota
A141: 2010-04-25 | B141: Shari | C141: 194 | D141: Sunset
A142: 2010-05-18 | B142: Mitchell | C142: 170 | D142: Majestic Beaut
A143: 2010-07-14 | B143: Ewelina | C143: 144 | D143: Carlota
A144: 2010-05-06 | B144: Christina | C144: 175 | D144: Carlota
A145: 2010-07-22 | B145: Michelle | C145: 185 | D145: Sunshine
A146: 2010-07-02 | B146: Carol | C146: 133 | D146: Majestic Beaut
A147: 2010-05-21 | B147: Sarah | C147: 131 | D147: Sunset
A148: 2010-06-15 | B148: Mansa | C148: 163 | D148: Sunshine
A149: 2010-03-26 | B149: Denise | C149: 120 | D149: Sunshine
A150: 2010-05-04 | B150: Manavbir | C150: 136 | D150: Majestic Beaut
A151: 2010-03-28 | B151: Gianna | C151: 195 | D151: Sunset
A152: 2010-04-21 | B152: Yla-Katrina | C152: 157 | D152: Sunset
A153: 2010-05-27 | B153: Michelle | C153: 187 | D153: Majestic Beaut
A154: 2010-05-15 | B154: Christina | C154: 185 | D154: Carlota
A155: 2010-07-10 | B155: Jason | C155: 154 | D155: Sunset
A156: 2010-06-13 | B156: Jason | C156: 187 | D156: Sunshine
A157: 2010-07-14 | B157: Gianna | C157: 142 | D157: Sunshine
A158: 2010-07-19 | B158: Denise | C158: 132 | D158: Majestic Beaut
A159: 2010-07-11 | B159: Mitchell | C159: 127 | D159: Sunset
A160: 2010-05-27 | B160: Mansa | C160: 184 | D160: Majestic Beaut
A161: 2010-06-23 | B161: Thongtara | C161: 164 | D161: Bellen
A162: 2010-04-28 | B162: Sykes | C162: 157 | D162: Sunset
A163: 2010-07-05 | B163: Craig | C163: 186 | D163: Majestic Beaut
A164: 2010-05-23 | B164: Elain | C164: 135 | D164: Carlota
A165: 2010-06-25 | B165: Janita | C165: 194 | D165: Carlota
A166: 2010-04-05 | B166: Thongtara | C166: 177 | D166: Sunset
A167: 2010-05-05 | B167: Mitchell | C167: 143 | D167: Carlota
A168: 2010-05-18 | B168: Manavbir | C168: 152 | D168: Sunset
A169: 2010-06-03 | B169: Nelia | C169: 101 | D169: Sunset
A170: 2010-05-05 | B170: Janita | C170: 110 | D170: Majestic Beaut
A171: 2010-06-15 | B171: Denise | C171: 124 | D171: Carlota
A172: 2010-05-08 | B172: Christina | C172: 102 | D172: Sunshine
A173: 2010-07-16 | B173: Richard | C173: 139 | D173: Sunset
A174: 2010-05-06 | B174: Janita | C174: 152 | D174: Bellen
A175: 2010-05-17 | B175: Janita | C175: 168 | D175: Majestic Beaut
A176: 2010-04-01 | B176: Michael | C176: 151 | D176: Majestic Beaut
A177: 2010-05-06 | B177: Gianna | C177: 137 | D177: Sunshine
A178: 2010-07-13 | B178: Janita | C178: 104 | D178: Carlota
A179: 2010-04-09 | B179: Nelia | C179: 139 | D179: Carlota
A180: 2010-07-04 | B180: Daniel | C180: 147 | D180: Sunshine
A181: 2010-07-09 | B181: Mansa | C181: 190 | D181: Majestic Beaut
A182: 2010-07-19 | B182: Nelia | C182: 159 | D182: Carlota
A183: 2010-03-28 | B183: Manavbir | C183: 112 | D183: Carlota
A184: 2010-05-08 | B184: Christina | C184: 182 | D184: Majestic Beaut
A185: 2010-05-16 | B185: Richard | C185: 121 | D185: Sunset
A186: 2010-05-25 | B186: Kaur | C186: 181 | D186: Majestic Beaut
A187: 2010-06-03 | B187: Craig | C187: 104 | D187: Bellen
A188: 2010-06-01 | B188: Sykes | C188: 194 | D188: Sunset
A189: 2010-03-29 | B189: Christina | C189: 178 | D189: Sunshine
A190: 2010-06-27 | B190: Carol | C190: 142 | D190: Sunshine
A191: 2010-04-09 | B191: Mitchell | C191: 191 | D191: Bellen
A192: 2010-06-26 | B192: Sarah | C192: 120 | D192: Bellen
A193: 2010-05-10 | B193: Carol | C193: 155 | D193: Sunshine
A194: 2010-05-03 | B194: Manavbir | C194: 199 | D194: Sunshine
A195: 2010-05-12 | B195: Thongtara | C195: 106 | D195: Sunshine
A196: 2010-04-28 | B196: Elain | C196: 149 | D196: Majestic Beaut
A197: 2010-06-09 | B197: Michelle | C197: 158 | D197: Bellen
A198: 2010-04-01 | B198: Gianna | C198: 144 | D198: Bellen
A199: 2010-05-13 | B199: Daniel | C199: 143 | D199: Bellen
A200: 2010-07-09 | B200: Daniel | C200: 177 | D200: Sunshine
... 569 more rows

Sheet DA-Sort (an) (hidden)
G1: Data Analysis Data Set Rules:
A2: Date | B2: SalesRep | C2: Sales | D2: Product (boomerangs) | F2: 1 | G2: Field names (column headers) are in first row of data set
A3: 2010-04-18 | B3: Mitchell | C3: 200 | D3: Bellen | F3: 2 | G3: Records are in rows (Records are things like transactions or student information in a data base)
A4: 2010-05-01 | B4: Jason | C4: 200 | D4: Bellen | F4: 3 | G4: Blank cells or row headers or column headers surround entire data set
A5: 2010-07-18 | B5: Michelle | C5: 199 | D5: Bellen | F5: 4 | G5: No blanks in data set or field names (not 100% manditory, but if you don't there will be some problems).
A6: 2010-04-21 | B6: Mitchell | C6: 198 | D6: Bellen | F6: 5 | G6: Use Data Analysis Ribbon in Excel 2007
A7: 2010-03-28 | B7: Thongtara | C7: 198 | D7: Bellen
A8: 2010-06-15 | B8: Michael | C8: 197 | D8: Bellen | G8: Sorting key:
A9: 2010-05-01 | B9: Daniel | C9: 196 | D9: Bellen | G9: Click in only one cell before sorting
A10: 2010-06-12 | B10: Manavbir | C10: 196 | D10: Bellen | G10: If you want to sort more than one column, leave the major sort until last
A11: 2010-06-12 | B11: Carol | C11: 196 | D11: Bellen
A12: 2010-05-02 | B12: Yla-Katrina | C12: 195 | D12: Bellen
A13: 2010-06-12 | B13: Michael | C13: 193 | D13: Bellen
A14: 2010-04-09 | B14: Mitchell | C14: 191 | D14: Bellen
A15: 2010-06-30 | B15: Ewelina | C15: 191 | D15: Bellen
A16: 2010-07-21 | B16: Michael | C16: 191 | D16: Bellen
A17: 2010-05-07 | B17: Yla-Katrina | C17: 190 | D17: Bellen
A18: 2010-06-18 | B18: Manavbir | C18: 190 | D18: Bellen
A19: 2010-04-05 | B19: Michael | C19: 189 | D19: Bellen
A20: 2010-04-18 | B20: Jason | C20: 189 | D20: Bellen
A21: 2010-04-21 | B21: Jason | C21: 187 | D21: Bellen
A22: 2010-05-09 | B22: Sykes | C22: 186 | D22: Bellen
A23: 2010-07-01 | B23: Thongtara | C23: 186 | D23: Bellen
A24: 2010-07-12 | B24: Debra | C24: 184 | D24: Bellen
A25: 2010-07-15 | B25: Sykes | C25: 184 | D25: Bellen
A26: 2010-04-13 | B26: Richard | C26: 182 | D26: Bellen
A27: 2010-06-25 | B27: Sarah | C27: 182 | D27: Bellen
A28: 2010-07-14 | B28: Denise | C28: 181 | D28: Bellen
A29: 2010-04-17 | B29: Sykes | C29: 180 | D29: Bellen
A30: 2010-06-24 | B30: Christina | C30: 179 | D30: Bellen
A31: 2010-05-06 | B31: Daniel | C31: 178 | D31: Bellen
A32: 2010-04-15 | B32: Janita | C32: 176 | D32: Bellen
A33: 2010-06-01 | B33: Christina | C33: 176 | D33: Bellen
A34: 2010-05-21 | B34: Denise | C34: 175 | D34: Bellen
A35: 2010-07-04 | B35: Ewelina | C35: 175 | D35: Bellen
A36: 2010-05-27 | B36: Kaur | C36: 175 | D36: Bellen
A37: 2010-06-21 | B37: Michael | C37: 174 | D37: Bellen
A38: 2010-06-12 | B38: Manavbir | C38: 174 | D38: Bellen
A39: 2010-06-12 | B39: Nelia | C39: 174 | D39: Bellen
A40: 2010-05-11 | B40: Kaur | C40: 173 | D40: Bellen
A41: 2010-05-19 | B41: Daniel | C41: 172 | D41: Bellen
A42: 2010-04-04 | B42: Ewelina | C42: 172 | D42: Bellen
A43: 2010-07-16 | B43: Kaur | C43: 172 | D43: Bellen
A44: 2010-04-18 | B44: Kaur | C44: 172 | D44: Bellen
A45: 2010-04-19 | B45: Sarah | C45: 170 | D45: Bellen
A46: 2010-05-11 | B46: Yla-Katrina | C46: 168 | D46: Bellen
A47: 2010-05-21 | B47: Christina | C47: 168 | D47: Bellen
A48: 2010-04-30 | B48: Thongtara | C48: 167 | D48: Bellen
A49: 2010-04-24 | B49: Thongtara | C49: 167 | D49: Bellen
A50: 2010-05-15 | B50: Kaur | C50: 166 | D50: Bellen
A51: 2010-04-01 | B51: Ewelina | C51: 165 | D51: Bellen
A52: 2010-06-23 | B52: Thongtara | C52: 164 | D52: Bellen
A53: 2010-07-08 | B53: Manavbir | C53: 164 | D53: Bellen
A54: 2010-04-13 | B54: Michelle | C54: 164 | D54: Bellen
A55: 2010-06-10 | B55: Carol | C55: 162 | D55: Bellen
A56: 2010-07-07 | B56: Ewelina | C56: 162 | D56: Bellen
A57: 2010-06-09 | B57: Michelle | C57: 158 | D57: Bellen
A58: 2010-05-23 | B58: Carol | C58: 157 | D58: Bellen
A59: 2010-04-14 | B59: Nelia | C59: 157 | D59: Bellen
A60: 2010-04-02 | B60: Jason | C60: 157 | D60: Bellen
A61: 2010-06-28 | B61: Sykes | C61: 156 | D61: Bellen
A62: 2010-07-21 | B62: Michael | C62: 154 | D62: Bellen
A63: 2010-05-27 | B63: Thongtara | C63: 153 | D63: Bellen
A64: 2010-04-04 | B64: Denise | C64: 153 | D64: Bellen
A65: 2010-05-06 | B65: Janita | C65: 152 | D65: Bellen
A66: 2010-05-02 | B66: Debra | C66: 152 | D66: Bellen
A67: 2010-06-26 | B67: Richard | C67: 152 | D67: Bellen
A68: 2010-04-26 | B68: Denise | C68: 152 | D68: Bellen
A69: 2010-03-26 | B69: Yla-Katrina | C69: 152 | D69: Bellen
A70: 2010-05-22 | B70: Christina | C70: 151 | D70: Bellen
A71: 2010-04-26 | B71: Ewelina | C71: 148 | D71: Bellen
A72: 2010-06-17 | B72: Nelia | C72: 148 | D72: Bellen
A73: 2010-04-27 | B73: Thongtara | C73: 148 | D73: Bellen
A74: 2010-04-25 | B74: Shari | C74: 146 | D74: Bellen
A75: 2010-06-16 | B75: Elain | C75: 146 | D75: Bellen
A76: 2010-05-03 | B76: Michael | C76: 146 | D76: Bellen
A77: 2010-07-03 | B77: Craig | C77: 146 | D77: Bellen
A78: 2010-05-23 | B78: Gianna | C78: 145 | D78: Bellen
A79: 2010-06-30 | B79: Richard | C79: 144 | D79: Bellen
A80: 2010-04-01 | B80: Gianna | C80: 144 | D80: Bellen
A81: 2010-04-14 | B81: Gianna | C81: 144 | D81: Bellen
A82: 2010-07-04 | B82: Ewelina | C82: 144 | D82: Bellen
A83: 2010-05-13 | B83: Daniel | C83: 143 | D83: Bellen
A84: 2010-05-05 | B84: Elain | C84: 143 | D84: Bellen
A85: 2010-04-21 | B85: Christina | C85: 143 | D85: Bellen
A86: 2010-05-24 | B86: Elain | C86: 141 | D86: Bellen
A87: 2010-06-09 | B87: Denise | C87: 140 | D87: Bellen
A88: 2010-06-13 | B88: Sarah | C88: 138 | D88: Bellen
A89: 2010-07-18 | B89: Yla-Katrina | C89: 133 | D89: Bellen
A90: 2010-06-06 | B90: Christina | C90: 133 | D90: Bellen
A91: 2010-04-22 | B91: Daniel | C91: 132 | D91: Bellen
A92: 2010-07-10 | B92: Debra | C92: 132 | D92: Bellen
A93: 2010-04-30 | B93: Manavbir | C93: 132 | D93: Bellen
A94: 2010-05-01 | B94: Elain | C94: 132 | D94: Bellen
A95: 2010-07-23 | B95: Christina | C95: 131 | D95: Bellen
A96: 2010-07-10 | B96: Michelle | C96: 131 | D96: Bellen
A97: 2010-07-01 | B97: Denise | C97: 129 | D97: Bellen
A98: 2010-03-31 | B98: Mansa | C98: 128 | D98: Bellen
A99: 2010-05-11 | B99: Nelia | C99: 128 | D99: Bellen
A100: 2010-07-21 | B100: Janita | C100: 128 | D100: Bellen
A101: 2010-05-29 | B101: Sarah | C101: 128 | D101: Bellen
A102: 2010-05-15 | B102: Mansa | C102: 125 | D102: Bellen
A103: 2010-04-06 | B103: Denise | C103: 124 | D103: Bellen
A104: 2010-04-05 | B104: Michael | C104: 123 | D104: Bellen
A105: 2010-06-19 | B105: Janita | C105: 122 | D105: Bellen
A106: 2010-07-05 | B106: Jason | C106: 121 | D106: Bellen
A107: 2010-04-10 | B107: Carol | C107: 121 | D107: Bellen
A108: 2010-06-26 | B108: Sarah | C108: 120 | D108: Bellen
A109: 2010-05-02 | B109: Denise | C109: 120 | D109: Bellen
A110: 2010-07-06 | B110: Mansa | C110: 117 | D110: Bellen
A111: 2010-05-13 | B111: Richard | C111: 116 | D111: Bellen
A112: 2010-06-18 | B112: Elain | C112: 116 | D112: Bellen
A113: 2010-05-18 | B113: Debra | C113: 115 | D113: Bellen
A114: 2010-07-23 | B114: Jason | C114: 115 | D114: Bellen
A115: 2010-03-28 | B115: Daniel | C115: 114 | D115: Bellen
A116: 2010-06-25 | B116: Sarah | C116: 113 | D116: Bellen
A117: 2010-06-29 | B117: Jason | C117: 113 | D117: Bellen
A118: 2010-05-06 | B118: Richard | C118: 112 | D118: Bellen
A119: 2010-05-21 | B119: Denise | C119: 111 | D119: Bellen
A120: 2010-06-30 | B120: Shari | C120: 111 | D120: Bellen
A121: 2010-03-28 | B121: Mitchell | C121: 111 | D121: Bellen
A122: 2010-03-27 | B122: Janita | C122: 111 | D122: Bellen
A123: 2010-04-10 | B123: Elain | C123: 111 | D123: Bellen
A124: 2010-05-09 | B124: Yla-Katrina | C124: 109 | D124: Bellen
A125: 2010-05-26 | B125: Kaur | C125: 109 | D125: Bellen
A126: 2010-07-07 | B126: Sykes | C126: 108 | D126: Bellen
A127: 2010-04-02 | B127: Michelle | C127: 108 | D127: Bellen
A128: 2010-05-28 | B128: Jason | C128: 107 | D128: Bellen
A129: 2010-03-26 | B129: Michelle | C129: 107 | D129: Bellen
A130: 2010-07-10 | B130: Ewelina | C130: 107 | D130: Bellen
A131: 2010-03-29 | B131: Christina | C131: 106 | D131: Bellen
A132: 2010-06-23 | B132: Mansa | C132: 105 | D132: Bellen
A133: 2010-04-30 | B133: Nelia | C133: 105 | D133: Bellen
A134: 2010-04-20 | B134: Jason | C134: 104 | D134: Bellen
A135: 2010-06-03 | B135: Craig | C135: 104 | D135: Bellen
A136: 2010-05-19 | B136: Daniel | C136: 104 | D136: Bellen
A137: 2010-05-21 | B137: Shari | C137: 102 | D137: Bellen
A138: 2010-04-24 | B138: Michael | C138: 102 | D138: Bellen
A139: 2010-04-11 | B139: Craig | C139: 101 | D139: Bellen
A140: 2010-05-09 | B140: Kaur | C140: 200 | D140: Carlota
A141: 2010-04-01 | B141: Craig | C141: 199 | D141: Carlota
A142: 2010-04-16 | B142: Thongtara | C142: 199 | D142: Carlota
A143: 2010-04-30 | B143: Debra | C143: 199 | D143: Carlota
A144: 2010-04-25 | B144: Jason | C144: 197 | D144: Carlota
A145: 2010-07-24 | B145: Ewelina | C145: 197 | D145: Carlota
A146: 2010-06-24 | B146: Elain | C146: 195 | D146: Carlota
A147: 2010-07-15 | B147: Mitchell | C147: 195 | D147: Carlota
A148: 2010-04-03 | B148: Michelle | C148: 194 | D148: Carlota
A149: 2010-06-25 | B149: Janita | C149: 194 | D149: Carlota
A150: 2010-04-07 | B150: Shari | C150: 194 | D150: Carlota
A151: 2010-05-11 | B151: Yla-Katrina | C151: 193 | D151: Carlota
A152: 2010-07-15 | B152: Thongtara | C152: 193 | D152: Carlota
A153: 2010-05-13 | B153: Debra | C153: 192 | D153: Carlota
A154: 2010-06-20 | B154: Manavbir | C154: 192 | D154: Carlota
A155: 2010-03-28 | B155: Christina | C155: 191 | D155: Carlota
A156: 2010-06-24 | B156: Daniel | C156: 191 | D156: Carlota
A157: 2010-06-23 | B157: Debra | C157: 190 | D157: Carlota
A158: 2010-07-05 | B158: Shari | C158: 190 | D158: Carlota
A159: 2010-07-19 | B159: Michelle | C159: 189 | D159: Carlota
A160: 2010-07-21 | B160: Thongtara | C160: 188 | D160: Carlota
A161: 2010-06-21 | B161: Christina | C161: 188 | D161: Carlota
A162: 2010-04-10 | B162: Craig | C162: 187 | D162: Carlota
A163: 2010-06-21 | B163: Debra | C163: 185 | D163: Carlota
A164: 2010-05-15 | B164: Christina | C164: 185 | D164: Carlota
A165: 2010-06-14 | B165: Carol | C165: 184 | D165: Carlota
A166: 2010-07-17 | B166: Kaur | C166: 183 | D166: Carlota
A167: 2010-07-06 | B167: Janita | C167: 182 | D167: Carlota
A168: 2010-05-01 | B168: Richard | C168: 182 | D168: Carlota
A169: 2010-07-08 | B169: Elain | C169: 181 | D169: Carlota
A170: 2010-07-04 | B170: Jason | C170: 179 | D170: Carlota
A171: 2010-07-17 | B171: Daniel | C171: 179 | D171: Carlota
A172: 2010-07-03 | B172: Manavbir | C172: 179 | D172: Carlota
A173: 2010-04-23 | B173: Christina | C173: 179 | D173: Carlota
A174: 2010-04-13 | B174: Michelle | C174: 178 | D174: Carlota
A175: 2010-07-11 | B175: Kaur | C175: 177 | D175: Carlota
A176: 2010-06-06 | B176: Elain | C176: 176 | D176: Carlota
A177: 2010-04-20 | B177: Craig | C177: 176 | D177: Carlota
A178: 2010-05-06 | B178: Christina | C178: 175 | D178: Carlota
A179: 2010-06-10 | B179: Gianna | C179: 174 | D179: Carlota
A180: 2010-06-15 | B180: Carol | C180: 174 | D180: Carlota
A181: 2010-04-25 | B181: Elain | C181: 174 | D181: Carlota
A182: 2010-06-17 | B182: Mansa | C182: 173 | D182: Carlota
A183: 2010-07-21 | B183: Denise | C183: 172 | D183: Carlota
A184: 2010-05-03 | B184: Ewelina | C184: 172 | D184: Carlota
A185: 2010-04-03 | B185: Yla-Katrina | C185: 171 | D185: Carlota
A186: 2010-07-21 | B186: Sarah | C186: 170 | D186: Carlota
A187: 2010-05-10 | B187: Ewelina | C187: 169 | D187: Carlota
A188: 2010-04-12 | B188: Manavbir | C188: 167 | D188: Carlota
A189: 2010-06-24 | B189: Yla-Katrina | C189: 167 | D189: Carlota
A190: 2010-05-30 | B190: Ewelina | C190: 166 | D190: Carlota
A191: 2010-04-26 | B191: Craig | C191: 166 | D191: Carlota
A192: 2010-05-06 | B192: Jason | C192: 166 | D192: Carlota
A193: 2010-05-31 | B193: Mitchell | C193: 165 | D193: Carlota
A194: 2010-07-19 | B194: Michelle | C194: 165 | D194: Carlota
A195: 2010-06-29 | B195: Nelia | C195: 165 | D195: Carlota
A196: 2010-05-28 | B196: Elain | C196: 163 | D196: Carlota
A197: 2010-04-11 | B197: Daniel | C197: 163 | D197: Carlota
A198: 2010-05-16 | B198: Daniel | C198: 163 | D198: Carlota
A199: 2010-06-14 | B199: Michael | C199: 163 | D199: Carlota
A200: 2010-05-06 | B200: Thongtara | C200: 162 | D200: Carlota
... 569 more rows

Sheet DA-Filter
B1: Data Analysis Data Set Rules:
A2: 1 | B2: Field names (column headers) are in first row of data set
A3: 2 | B3: Records are in rows (Records are things like transactions or student information in a data base)
A4: 3 | B4: Blank cells or row headers or column headers surround entire data set
A5: 4 | B5: No blanks in data set or field names (not 100% mandatory, but if you don't there will be some problems).
A6: 5 | B6: Use Data Analysis Ribbon in Excel 2007
B8: Ctrl + Shift + L turns on and off Filter
A10: Date | B10: SalesRep | C10: Sales | D10: Product (boomerangs)
A11: 2010-05-21 | B11: Denise | C11: 111 | D11: Bellen
A12: 2010-04-30 | B12: Thongtara | C12: 167 | D12: Bellen
A13: 2010-04-19 | B13: Sykes | C13: 191 | D13: Sunshine
A14: 2010-06-17 | B14: Ewelina | C14: 110 | D14: Carlota
A15: 2010-07-22 | B15: Janita | C15: 146 | D15: Carlota
A16: 2010-05-16 | B16: Elain | C16: 177 | D16: Sunshine
A17: 2010-06-05 | B17: Gianna | C17: 137 | D17: Carlota
A18: 2010-05-13 | B18: Richard | C18: 116 | D18: Bellen
A19: 2010-05-14 | B19: Elain | C19: 166 | D19: Sunshine
A20: 2010-06-12 | B20: Michael | C20: 193 | D20: Bellen
A21: 2010-05-22 | B21: Ewelina | C21: 105 | D21: Sunset
A22: 2010-07-19 | B22: Michelle | C22: 189 | D22: Carlota
A23: 2010-05-12 | B23: Jason | C23: 122 | D23: Majestic Beaut
A24: 2010-06-05 | B24: Craig | C24: 196 | D24: Sunshine
A25: 2010-05-23 | B25: Sarah | C25: 161 | D25: Sunshine
A26: 2010-05-29 | B26: Mansa | C26: 197 | D26: Majestic Beaut
A27: 2010-07-21 | B27: Michelle | C27: 113 | D27: Sunset
A28: 2010-06-30 | B28: Shari | C28: 111 | D28: Bellen
A29: 2010-04-19 | B29: Richard | C29: 164 | D29: Sunshine
A30: 2010-06-19 | B30: Christina | C30: 167 | D30: Majestic Beaut
A31: 2010-07-01 | B31: Denise | C31: 129 | D31: Bellen
A32: 2010-04-29 | B32: Richard | C32: 122 | D32: Sunshine
A33: 2010-03-27 | B33: Thongtara | C33: 132 | D33: Sunshine
A34: 2010-04-13 | B34: Michelle | C34: 178 | D34: Carlota
A35: 2010-07-18 | B35: Michelle | C35: 199 | D35: Bellen
A36: 2010-05-27 | B36: Shari | C36: 181 | D36: Majestic Beaut
A37: 2010-06-15 | B37: Carol | C37: 110 | D37: Carlota
A38: 2010-04-08 | B38: Kaur | C38: 104 | D38: Sunset
A39: 2010-06-23 | B39: Mitchell | C39: 110 | D39: Sunshine
A40: 2010-06-21 | B40: Debra | C40: 185 | D40: Carlota
A41: 2010-05-01 | B41: Manavbir | C41: 183 | D41: Sunset
A42: 2010-07-07 | B42: Sykes | C42: 143 | D42: Sunset
A43: 2010-07-12 | B43: Elain | C43: 120 | D43: Carlota
A44: 2010-06-22 | B44: Michelle | C44: 147 | D44: Sunshine
A45: 2010-05-15 | B45: Jason | C45: 117 | D45: Sunshine
A46: 2010-03-31 | B46: Mansa | C46: 128 | D46: Bellen
A47: 2010-04-16 | B47: Shari | C47: 110 | D47: Sunshine
A48: 2010-05-23 | B48: Kaur | C48: 158 | D48: Carlota
A49: 2010-04-09 | B49: Manavbir | C49: 133 | D49: Sunset
A50: 2010-05-17 | B50: Debra | C50: 190 | D50: Majestic Beaut
A51: 2010-07-13 | B51: Sarah | C51: 138 | D51: Sunshine
A52: 2010-04-01 | B52: Daniel | C52: 143 | D52: Sunset
A53: 2010-04-12 | B53: Manavbir | C53: 167 | D53: Carlota
A54: 2010-04-02 | B54: Thongtara | C54: 135 | D54: Carlota
A55: 2010-05-22 | B55: Carol | C55: 125 | D55: Sunshine
A56: 2010-07-08 | B56: Janita | C56: 107 | D56: Carlota
A57: 2010-06-10 | B57: Carol | C57: 162 | D57: Bellen
A58: 2010-07-13 | B58: Thongtara | C58: 192 | D58: Majestic Beaut
A59: 2010-06-05 | B59: Daniel | C59: 152 | D59: Carlota
A60: 2010-04-28 | B60: Gianna | C60: 155 | D60: Majestic Beaut
A61: 2010-07-08 | B61: Kaur | C61: 155 | D61: Sunshine
A62: 2010-05-06 | B62: Mansa | C62: 145 | D62: Sunshine
A63: 2010-07-10 | B63: Janita | C63: 149 | D63: Carlota
A64: 2010-06-24 | B64: Kaur | C64: 180 | D64: Sunset
A65: 2010-05-07 | B65: Yla-Katrina | C65: 190 | D65: Bellen
A66: 2010-07-01 | B66: Richard | C66: 127 | D66: Sunset
A67: 2010-03-30 | B67: Christina | C67: 114 | D67: Carlota
A68: 2010-04-18 | B68: Carol | C68: 191 | D68: Majestic Beaut
A69: 2010-07-02 | B69: Sykes | C69: 197 | D69: Sunshine
A70: 2010-05-09 | B70: Sykes | C70: 186 | D70: Bellen
A71: 2010-06-10 | B71: Gianna | C71: 174 | D71: Carlota
A72: 2010-05-29 | B72: Yla-Katrina | C72: 114 | D72: Carlota
A73: 2010-07-05 | B73: Jason | C73: 121 | D73: Bellen
A74: 2010-03-28 | B74: Debra | C74: 134 | D74: Sunshine
A75: 2010-06-15 | B75: Carol | C75: 174 | D75: Carlota
A76: 2010-05-06 | B76: Craig | C76: 178 | D76: Majestic Beaut
A77: 2010-06-01 | B77: Ewelina | C77: 132 | D77: Sunshine
A78: 2010-06-02 | B78: Sarah | C78: 148 | D78: Carlota
A79: 2010-04-05 | B79: Michelle | C79: 120 | D79: Sunset
A80: 2010-06-01 | B80: Thongtara | C80: 199 | D80: Sunshine
A81: 2010-03-31 | B81: Michelle | C81: 109 | D81: Majestic Beaut
A82: 2010-06-27 | B82: Gianna | C82: 138 | D82: Carlota
A83: 2010-05-27 | B83: Thongtara | C83: 153 | D83: Bellen
A84: 2010-06-19 | B84: Janita | C84: 122 | D84: Bellen
A85: 2010-07-21 | B85: Michael | C85: 154 | D85: Bellen
A86: 2010-06-19 | B86: Jason | C86: 174 | D86: Sunset
A87: 2010-07-14 | B87: Denise | C87: 181 | D87: Bellen
A88: 2010-06-25 | B88: Sarah | C88: 113 | D88: Bellen
A89: 2010-04-01 | B89: Nelia | C89: 177 | D89: Sunset
A90: 2010-07-12 | B90: Mitchell | C90: 138 | D90: Majestic Beaut
A91: 2010-05-21 | B91: Denise | C91: 175 | D91: Bellen
A92: 2010-04-16 | B92: Ewelina | C92: 149 | D92: Majestic Beaut
A93: 2010-05-11 | B93: Shari | C93: 140 | D93: Majestic Beaut
A94: 2010-05-03 | B94: Michelle | C94: 152 | D94: Carlota
A95: 2010-04-20 | B95: Jason | C95: 104 | D95: Bellen
A96: 2010-06-07 | B96: Daniel | C96: 116 | D96: Majestic Beaut
A97: 2010-05-06 | B97: Sykes | C97: 131 | D97: Carlota
A98: 2010-04-07 | B98: Thongtara | C98: 135 | D98: Sunshine
A99: 2010-06-04 | B99: Michelle | C99: 164 | D99: Sunset
A100: 2010-03-27 | B100: Manavbir | C100: 178 | D100: Sunset
A101: 2010-04-08 | B101: Debra | C101: 139 | D101: Sunshine
A102: 2010-05-04 | B102: Carol | C102: 160 | D102: Carlota
A103: 2010-07-07 | B103: Ewelina | C103: 162 | D103: Bellen
A104: 2010-06-19 | B104: Shari | C104: 103 | D104: Sunshine
A105: 2010-05-09 | B105: Kaur | C105: 200 | D105: Carlota
A106: 2010-04-21 | B106: Mansa | C106: 132 | D106: Sunset
A107: 2010-04-12 | B107: Sarah | C107: 133 | D107: Sunshine
A108: 2010-06-23 | B108: Mansa | C108: 187 | D108: Majestic Beaut
A109: 2010-07-22 | B109: Michael | C109: 173 | D109: Majestic Beaut
A110: 2010-06-07 | B110: Sykes | C110: 112 | D110: Sunshine
A111: 2010-04-22 | B111: Daniel | C111: 132 | D111: Bellen
A112: 2010-04-27 | B112: Sykes | C112: 112 | D112: Sunset
A113: 2010-04-23 | B113: Daniel | C113: 131 | D113: Carlota
A114: 2010-05-25 | B114: Craig | C114: 175 | D114: Sunshine
A115: 2010-07-19 | B115: Craig | C115: 158 | D115: Sunshine
A116: 2010-04-26 | B116: Ewelina | C116: 148 | D116: Bellen
A117: 2010-06-09 | B117: Daniel | C117: 187 | D117: Sunset
A118: 2010-07-07 | B118: Mansa | C118: 168 | D118: Majestic Beaut
A119: 2010-04-25 | B119: Nelia | C119: 116 | D119: Majestic Beaut
A120: 2010-03-26 | B120: Jason | C120: 122 | D120: Carlota
A121: 2010-05-21 | B121: Debra | C121: 160 | D121: Sunshine
A122: 2010-05-13 | B122: Debra | C122: 192 | D122: Carlota
A123: 2010-05-19 | B123: Christina | C123: 154 | D123: Sunset
A124: 2010-04-06 | B124: Jason | C124: 145 | D124: Sunshine
A125: 2010-05-03 | B125: Richard | C125: 178 | D125: Sunshine
A126: 2010-05-04 | B126: Sarah | C126: 112 | D126: Sunset
A127: 2010-07-04 | B127: Elain | C127: 115 | D127: Carlota
A128: 2010-05-25 | B128: Mansa | C128: 146 | D128: Carlota
A129: 2010-06-15 | B129: Debra | C129: 109 | D129: Majestic Beaut
A130: 2010-07-21 | B130: Denise | C130: 172 | D130: Carlota
A131: 2010-05-22 | B131: Daniel | C131: 146 | D131: Sunshine
A132: 2010-06-30 | B132: Richard | C132: 144 | D132: Bellen
A133: 2010-06-23 | B133: Mitchell | C133: 146 | D133: Carlota
A134: 2010-04-28 | B134: Kaur | C134: 105 | D134: Sunshine
A135: 2010-06-25 | B135: Ewelina | C135: 134 | D135: Carlota
A136: 2010-07-11 | B136: Richard | C136: 118 | D136: Carlota
A137: 2010-07-10 | B137: Debra | C137: 132 | D137: Bellen
A138: 2010-05-27 | B138: Carol | C138: 117 | D138: Sunset
A139: 2010-04-03 | B139: Michelle | C139: 194 | D139: Carlota
A140: 2010-04-27 | B140: Debra | C140: 122 | D140: Sunshine
A141: 2010-06-29 | B141: Michelle | C141: 134 | D141: Sunset
A142: 2010-07-11 | B142: Sykes | C142: 134 | D142: Sunshine
A143: 2010-03-30 | B143: Elain | C143: 125 | D143: Sunset
A144: 2010-04-05 | B144: Carol | C144: 115 | D144: Majestic Beaut
A145: 2010-04-04 | B145: Christina | C145: 105 | D145: Sunset
A146: 2010-06-24 | B146: Christina | C146: 179 | D146: Bellen
A147: 2010-06-22 | B147: Elain | C147: 114 | D147: Sunset
A148: 2010-06-06 | B148: Elain | C148: 176 | D148: Carlota
A149: 2010-04-25 | B149: Shari | C149: 194 | D149: Sunset
A150: 2010-05-18 | B150: Mitchell | C150: 170 | D150: Majestic Beaut
A151: 2010-07-14 | B151: Ewelina | C151: 144 | D151: Carlota
A152: 2010-05-06 | B152: Christina | C152: 175 | D152: Carlota
A153: 2010-07-22 | B153: Michelle | C153: 185 | D153: Sunshine
A154: 2010-07-02 | B154: Carol | C154: 133 | D154: Majestic Beaut
A155: 2010-05-21 | B155: Sarah | C155: 131 | D155: Sunset
A156: 2010-06-15 | B156: Mansa | C156: 163 | D156: Sunshine
A157: 2010-03-26 | B157: Denise | C157: 120 | D157: Sunshine
A158: 2010-05-04 | B158: Manavbir | C158: 136 | D158: Majestic Beaut
A159: 2010-03-28 | B159: Gianna | C159: 195 | D159: Sunset
A160: 2010-04-21 | B160: Yla-Katrina | C160: 157 | D160: Sunset
A161: 2010-05-27 | B161: Michelle | C161: 187 | D161: Majestic Beaut
A162: 2010-05-15 | B162: Christina | C162: 185 | D162: Carlota
A163: 2010-07-10 | B163: Jason | C163: 154 | D163: Sunset
A164: 2010-06-13 | B164: Jason | C164: 187 | D164: Sunshine
A165: 2010-07-14 | B165: Gianna | C165: 142 | D165: Sunshine
A166: 2010-07-19 | B166: Denise | C166: 132 | D166: Majestic Beaut
A167: 2010-07-11 | B167: Mitchell | C167: 127 | D167: Sunset
A168: 2010-05-27 | B168: Mansa | C168: 184 | D168: Majestic Beaut
A169: 2010-06-23 | B169: Thongtara | C169: 164 | D169: Bellen
A170: 2010-04-28 | B170: Sykes | C170: 157 | D170: Sunset
A171: 2010-07-05 | B171: Craig | C171: 186 | D171: Majestic Beaut
A172: 2010-05-23 | B172: Elain | C172: 135 | D172: Carlota
A173: 2010-06-25 | B173: Janita | C173: 194 | D173: Carlota
A174: 2010-04-05 | B174: Thongtara | C174: 177 | D174: Sunset
A175: 2010-05-05 | B175: Mitchell | C175: 143 | D175: Carlota
A176: 2010-05-18 | B176: Manavbir | C176: 152 | D176: Sunset
A177: 2010-06-03 | B177: Nelia | C177: 101 | D177: Sunset
A178: 2010-05-05 | B178: Janita | C178: 110 | D178: Majestic Beaut
A179: 2010-06-15 | B179: Denise | C179: 124 | D179: Carlota
A180: 2010-05-08 | B180: Christina | C180: 102 | D180: Sunshine
A181: 2010-07-16 | B181: Richard | C181: 139 | D181: Sunset
A182: 2010-05-06 | B182: Janita | C182: 152 | D182: Bellen
A183: 2010-05-17 | B183: Janita | C183: 168 | D183: Majestic Beaut
A184: 2010-04-01 | B184: Michael | C184: 151 | D184: Majestic Beaut
A185: 2010-05-06 | B185: Gianna | C185: 137 | D185: Sunshine
A186: 2010-07-13 | B186: Janita | C186: 104 | D186: Carlota
A187: 2010-04-09 | B187: Nelia | C187: 139 | D187: Carlota
A188: 2010-07-04 | B188: Daniel | C188: 147 | D188: Sunshine
A189: 2010-07-09 | B189: Mansa | C189: 190 | D189: Majestic Beaut
A190: 2010-07-19 | B190: Nelia | C190: 159 | D190: Carlota
A191: 2010-03-28 | B191: Manavbir | C191: 112 | D191: Carlota
A192: 2010-05-08 | B192: Christina | C192: 182 | D192: Majestic Beaut
A193: 2010-05-16 | B193: Richard | C193: 121 | D193: Sunset
A194: 2010-05-25 | B194: Kaur | C194: 181 | D194: Majestic Beaut
A195: 2010-06-03 | B195: Craig | C195: 104 | D195: Bellen
A196: 2010-06-01 | B196: Sykes | C196: 194 | D196: Sunset
A197: 2010-03-29 | B197: Christina | C197: 178 | D197: Sunshine
A198: 2010-06-27 | B198: Carol | C198: 142 | D198: Sunshine
A199: 2010-04-09 | B199: Mitchell | C199: 191 | D199: Bellen
A200: 2010-06-26 | B200: Sarah | C200: 120 | D200: Bellen
A201: 2010-05-10 | B201: Carol | C201: 155 | D201: Sunshine
A202: 2010-05-03 | B202: Manavbir | C202: 199 | D202: Sunshine
... 575 more rows

Sheet DA-Filter (an) (hidden)
B1: Data Analysis Data Set Rules:
A2: 1 | B2: Field names (column headers) are in first row of data set
A3: 2 | B3: Records are in rows (Records are things like transactions or student information in a data base)
A4: 3 | B4: Blank cells or row headers or column headers surround entire data set
A5: 4 | B5: No blanks in data set or field names (not 100% manditory, but if you don't there will be some problems).
A6: 5 | B6: Use Data Analysis Ribbon in Excel 2007
B8: Ctrl + Shift + L turns on and off Filter
A10: Date | B10: SalesRep | C10: Sales | D10: Product (boomerangs)
A11: 2010-05-21 | B11: Denise | C11: 111 | D11: Bellen
A12: 2010-04-30 | B12: Thongtara | C12: 167 | D12: Bellen
A13: 2010-04-19 | B13: Sykes | C13: 191 | D13: Sunshine
A14: 2010-06-17 | B14: Ewelina | C14: 110 | D14: Carlota
A15: 2010-07-22 | B15: Janita | C15: 146 | D15: Carlota
A16: 2010-05-16 | B16: Elain | C16: 177 | D16: Sunshine
A17: 2010-06-05 | B17: Gianna | C17: 137 | D17: Carlota
A18: 2010-05-13 | B18: Richard | C18: 116 | D18: Bellen
A19: 2010-05-14 | B19: Elain | C19: 166 | D19: Sunshine
A20: 2010-06-12 | B20: Michael | C20: 193 | D20: Bellen
A21: 2010-05-22 | B21: Ewelina | C21: 105 | D21: Sunset
A22: 2010-07-19 | B22: Michelle | C22: 189 | D22: Carlota
A23: 2010-05-12 | B23: Jason | C23: 122 | D23: Majestic Beaut
A24: 2010-06-05 | B24: Craig | C24: 196 | D24: Sunshine
A25: 2010-05-23 | B25: Sarah | C25: 161 | D25: Sunshine
A26: 2010-05-29 | B26: Mansa | C26: 197 | D26: Majestic Beaut
A27: 2010-07-21 | B27: Michelle | C27: 113 | D27: Sunset
A28: 2010-06-30 | B28: Shari | C28: 111 | D28: Bellen
A29: 2010-04-19 | B29: Richard | C29: 164 | D29: Sunshine
A30: 2010-06-19 | B30: Christina | C30: 167 | D30: Majestic Beaut
A31: 2010-07-01 | B31: Denise | C31: 129 | D31: Bellen
A32: 2010-04-29 | B32: Richard | C32: 122 | D32: Sunshine
A33: 2010-03-27 | B33: Thongtara | C33: 132 | D33: Sunshine
A34: 2010-04-13 | B34: Michelle | C34: 178 | D34: Carlota
A35: 2010-07-18 | B35: Michelle | C35: 199 | D35: Bellen
A36: 2010-05-27 | B36: Shari | C36: 181 | D36: Majestic Beaut
A37: 2010-06-15 | B37: Carol | C37: 110 | D37: Carlota
A38: 2010-04-08 | B38: Kaur | C38: 104 | D38: Sunset
A39: 2010-06-23 | B39: Mitchell | C39: 110 | D39: Sunshine
A40: 2010-06-21 | B40: Debra | C40: 185 | D40: Carlota
A41: 2010-05-01 | B41: Manavbir | C41: 183 | D41: Sunset
A42: 2010-07-07 | B42: Sykes | C42: 143 | D42: Sunset
A43: 2010-07-12 | B43: Elain | C43: 120 | D43: Carlota
A44: 2010-06-22 | B44: Michelle | C44: 147 | D44: Sunshine
A45: 2010-05-15 | B45: Jason | C45: 117 | D45: Sunshine
A46: 2010-03-31 | B46: Mansa | C46: 128 | D46: Bellen
A47: 2010-04-16 | B47: Shari | C47: 110 | D47: Sunshine
A48: 2010-05-23 | B48: Kaur | C48: 158 | D48: Carlota
A49: 2010-04-09 | B49: Manavbir | C49: 133 | D49: Sunset
A50: 2010-05-17 | B50: Debra | C50: 190 | D50: Majestic Beaut
A51: 2010-07-13 | B51: Sarah | C51: 138 | D51: Sunshine
A52: 2010-04-01 | B52: Daniel | C52: 143 | D52: Sunset
A53: 2010-04-12 | B53: Manavbir | C53: 167 | D53: Carlota
A54: 2010-04-02 | B54: Thongtara | C54: 135 | D54: Carlota
A55: 2010-05-22 | B55: Carol | C55: 125 | D55: Sunshine
A56: 2010-07-08 | B56: Janita | C56: 107 | D56: Carlota
A57: 2010-06-10 | B57: Carol | C57: 162 | D57: Bellen
A58: 2010-07-13 | B58: Thongtara | C58: 192 | D58: Majestic Beaut
A59: 2010-06-05 | B59: Daniel | C59: 152 | D59: Carlota
A60: 2010-04-28 | B60: Gianna | C60: 155 | D60: Majestic Beaut
A61: 2010-07-08 | B61: Kaur | C61: 155 | D61: Sunshine
A62: 2010-05-06 | B62: Mansa | C62: 145 | D62: Sunshine
A63: 2010-07-10 | B63: Janita | C63: 149 | D63: Carlota
A64: 2010-06-24 | B64: Kaur | C64: 180 | D64: Sunset
A65: 2010-05-07 | B65: Yla-Katrina | C65: 190 | D65: Bellen
A66: 2010-07-01 | B66: Richard | C66: 127 | D66: Sunset
A67: 2010-03-30 | B67: Christina | C67: 114 | D67: Carlota
A68: 2010-04-18 | B68: Carol | C68: 191 | D68: Majestic Beaut
A69: 2010-07-02 | B69: Sykes | C69: 197 | D69: Sunshine
A70: 2010-05-09 | B70: Sykes | C70: 186 | D70: Bellen
A71: 2010-06-10 | B71: Gianna | C71: 174 | D71: Carlota
A72: 2010-05-29 | B72: Yla-Katrina | C72: 114 | D72: Carlota
A73: 2010-07-05 | B73: Jason | C73: 121 | D73: Bellen
A74: 2010-03-28 | B74: Debra | C74: 134 | D74: Sunshine
A75: 2010-06-15 | B75: Carol | C75: 174 | D75: Carlota
A76: 2010-05-06 | B76: Craig | C76: 178 | D76: Majestic Beaut
A77: 2010-06-01 | B77: Ewelina | C77: 132 | D77: Sunshine
A78: 2010-06-02 | B78: Sarah | C78: 148 | D78: Carlota
A79: 2010-04-05 | B79: Michelle | C79: 120 | D79: Sunset
A80: 2010-06-01 | B80: Thongtara | C80: 199 | D80: Sunshine
A81: 2010-03-31 | B81: Michelle | C81: 109 | D81: Majestic Beaut
A82: 2010-06-27 | B82: Gianna | C82: 138 | D82: Carlota
A83: 2010-05-27 | B83: Thongtara | C83: 153 | D83: Bellen
A84: 2010-06-19 | B84: Janita | C84: 122 | D84: Bellen
A85: 2010-07-21 | B85: Michael | C85: 154 | D85: Bellen
A86: 2010-06-19 | B86: Jason | C86: 174 | D86: Sunset
A87: 2010-07-14 | B87: Denise | C87: 181 | D87: Bellen
A88: 2010-06-25 | B88: Sarah | C88: 113 | D88: Bellen
A89: 2010-04-01 | B89: Nelia | C89: 177 | D89: Sunset
A90: 2010-07-12 | B90: Mitchell | C90: 138 | D90: Majestic Beaut
A91: 2010-05-21 | B91: Denise | C91: 175 | D91: Bellen
A92: 2010-04-16 | B92: Ewelina | C92: 149 | D92: Majestic Beaut
A93: 2010-05-11 | B93: Shari | C93: 140 | D93: Majestic Beaut
A94: 2010-05-03 | B94: Michelle | C94: 152 | D94: Carlota
A95: 2010-04-20 | B95: Jason | C95: 104 | D95: Bellen
A96: 2010-06-07 | B96: Daniel | C96: 116 | D96: Majestic Beaut
A97: 2010-05-06 | B97: Sykes | C97: 131 | D97: Carlota
A98: 2010-04-07 | B98: Thongtara | C98: 135 | D98: Sunshine
A99: 2010-06-04 | B99: Michelle | C99: 164 | D99: Sunset
A100: 2010-03-27 | B100: Manavbir | C100: 178 | D100: Sunset
A101: 2010-04-08 | B101: Debra | C101: 139 | D101: Sunshine
A102: 2010-05-04 | B102: Carol | C102: 160 | D102: Carlota
A103: 2010-07-07 | B103: Ewelina | C103: 162 | D103: Bellen
A104: 2010-06-19 | B104: Shari | C104: 103 | D104: Sunshine
A105: 2010-05-09 | B105: Kaur | C105: 200 | D105: Carlota
A106: 2010-04-21 | B106: Mansa | C106: 132 | D106: Sunset
A107: 2010-04-12 | B107: Sarah | C107: 133 | D107: Sunshine
A108: 2010-06-23 | B108: Mansa | C108: 187 | D108: Majestic Beaut
A109: 2010-07-22 | B109: Michael | C109: 173 | D109: Majestic Beaut
A110: 2010-06-07 | B110: Sykes | C110: 112 | D110: Sunshine
A111: 2010-04-22 | B111: Daniel | C111: 132 | D111: Bellen
A112: 2010-04-27 | B112: Sykes | C112: 112 | D112: Sunset
A113: 2010-04-23 | B113: Daniel | C113: 131 | D113: Carlota
A114: 2010-05-25 | B114: Craig | C114: 175 | D114: Sunshine
A115: 2010-07-19 | B115: Craig | C115: 158 | D115: Sunshine
A116: 2010-04-26 | B116: Ewelina | C116: 148 | D116: Bellen
A117: 2010-06-09 | B117: Daniel | C117: 187 | D117: Sunset
A118: 2010-07-07 | B118: Mansa | C118: 168 | D118: Majestic Beaut
A119: 2010-04-25 | B119: Nelia | C119: 116 | D119: Majestic Beaut
A120: 2010-03-26 | B120: Jason | C120: 122 | D120: Carlota
A121: 2010-05-21 | B121: Debra | C121: 160 | D121: Sunshine
A122: 2010-05-13 | B122: Debra | C122: 192 | D122: Carlota
A123: 2010-05-19 | B123: Christina | C123: 154 | D123: Sunset
A124: 2010-04-06 | B124: Jason | C124: 145 | D124: Sunshine
A125: 2010-05-03 | B125: Richard | C125: 178 | D125: Sunshine
A126: 2010-05-04 | B126: Sarah | C126: 112 | D126: Sunset
A127: 2010-07-04 | B127: Elain | C127: 115 | D127: Carlota
A128: 2010-05-25 | B128: Mansa | C128: 146 | D128: Carlota
A129: 2010-06-15 | B129: Debra | C129: 109 | D129: Majestic Beaut
A130: 2010-07-21 | B130: Denise | C130: 172 | D130: Carlota
A131: 2010-05-22 | B131: Daniel | C131: 146 | D131: Sunshine
A132: 2010-06-30 | B132: Richard | C132: 144 | D132: Bellen
A133: 2010-06-23 | B133: Mitchell | C133: 146 | D133: Carlota
A134: 2010-04-28 | B134: Kaur | C134: 105 | D134: Sunshine
A135: 2010-06-25 | B135: Ewelina | C135: 134 | D135: Carlota
A136: 2010-07-11 | B136: Richard | C136: 118 | D136: Carlota
A137: 2010-07-10 | B137: Debra | C137: 132 | D137: Bellen
A138: 2010-05-27 | B138: Carol | C138: 117 | D138: Sunset
A139: 2010-04-03 | B139: Michelle | C139: 194 | D139: Carlota
A140: 2010-04-27 | B140: Debra | C140: 122 | D140: Sunshine
A141: 2010-06-29 | B141: Michelle | C141: 134 | D141: Sunset
A142: 2010-07-11 | B142: Sykes | C142: 134 | D142: Sunshine
A143: 2010-03-30 | B143: Elain | C143: 125 | D143: Sunset
A144: 2010-04-05 | B144: Carol | C144: 115 | D144: Majestic Beaut
A145: 2010-04-04 | B145: Christina | C145: 105 | D145: Sunset
A146: 2010-06-24 | B146: Christina | C146: 179 | D146: Bellen
A147: 2010-06-22 | B147: Elain | C147: 114 | D147: Sunset
A148: 2010-06-06 | B148: Elain | C148: 176 | D148: Carlota
A149: 2010-04-25 | B149: Shari | C149: 194 | D149: Sunset
A150: 2010-05-18 | B150: Mitchell | C150: 170 | D150: Majestic Beaut
A151: 2010-07-14 | B151: Ewelina | C151: 144 | D151: Carlota
A152: 2010-05-06 | B152: Christina | C152: 175 | D152: Carlota
A153: 2010-07-22 | B153: Michelle | C153: 185 | D153: Sunshine
A154: 2010-07-02 | B154: Carol | C154: 133 | D154: Majestic Beaut
A155: 2010-05-21 | B155: Sarah | C155: 131 | D155: Sunset
A156: 2010-06-15 | B156: Mansa | C156: 163 | D156: Sunshine
A157: 2010-03-26 | B157: Denise | C157: 120 | D157: Sunshine
A158: 2010-05-04 | B158: Manavbir | C158: 136 | D158: Majestic Beaut
A159: 2010-03-28 | B159: Gianna | C159: 195 | D159: Sunset
A160: 2010-04-21 | B160: Yla-Katrina | C160: 157 | D160: Sunset
A161: 2010-05-27 | B161: Michelle | C161: 187 | D161: Majestic Beaut
A162: 2010-05-15 | B162: Christina | C162: 185 | D162: Carlota
A163: 2010-07-10 | B163: Jason | C163: 154 | D163: Sunset
A164: 2010-06-13 | B164: Jason | C164: 187 | D164: Sunshine
A165: 2010-07-14 | B165: Gianna | C165: 142 | D165: Sunshine
A166: 2010-07-19 | B166: Denise | C166: 132 | D166: Majestic Beaut
A167: 2010-07-11 | B167: Mitchell | C167: 127 | D167: Sunset
A168: 2010-05-27 | B168: Mansa | C168: 184 | D168: Majestic Beaut
A169: 2010-06-23 | B169: Thongtara | C169: 164 | D169: Bellen
A170: 2010-04-28 | B170: Sykes | C170: 157 | D170: Sunset
A171: 2010-07-05 | B171: Craig | C171: 186 | D171: Majestic Beaut
A172: 2010-05-23 | B172: Elain | C172: 135 | D172: Carlota
A173: 2010-06-25 | B173: Janita | C173: 194 | D173: Carlota
A174: 2010-04-05 | B174: Thongtara | C174: 177 | D174: Sunset
A175: 2010-05-05 | B175: Mitchell | C175: 143 | D175: Carlota
A176: 2010-05-18 | B176: Manavbir | C176: 152 | D176: Sunset
A177: 2010-06-03 | B177: Nelia | C177: 101 | D177: Sunset
A178: 2010-05-05 | B178: Janita | C178: 110 | D178: Majestic Beaut
A179: 2010-06-15 | B179: Denise | C179: 124 | D179: Carlota
A180: 2010-05-08 | B180: Christina | C180: 102 | D180: Sunshine
A181: 2010-07-16 | B181: Richard | C181: 139 | D181: Sunset
A182: 2010-05-06 | B182: Janita | C182: 152 | D182: Bellen
A183: 2010-05-17 | B183: Janita | C183: 168 | D183: Majestic Beaut
A184: 2010-04-01 | B184: Michael | C184: 151 | D184: Majestic Beaut
A185: 2010-05-06 | B185: Gianna | C185: 137 | D185: Sunshine
A186: 2010-07-13 | B186: Janita | C186: 104 | D186: Carlota
A187: 2010-04-09 | B187: Nelia | C187: 139 | D187: Carlota
A188: 2010-07-04 | B188: Daniel | C188: 147 | D188: Sunshine
A189: 2010-07-09 | B189: Mansa | C189: 190 | D189: Majestic Beaut
A190: 2010-07-19 | B190: Nelia | C190: 159 | D190: Carlota
A191: 2010-03-28 | B191: Manavbir | C191: 112 | D191: Carlota
A192: 2010-05-08 | B192: Christina | C192: 182 | D192: Majestic Beaut
A193: 2010-05-16 | B193: Richard | C193: 121 | D193: Sunset
A194: 2010-05-25 | B194: Kaur | C194: 181 | D194: Majestic Beaut
A195: 2010-06-03 | B195: Craig | C195: 104 | D195: Bellen
A196: 2010-06-01 | B196: Sykes | C196: 194 | D196: Sunset
A197: 2010-03-29 | B197: Christina | C197: 178 | D197: Sunshine
A198: 2010-06-27 | B198: Carol | C198: 142 | D198: Sunshine
A199: 2010-04-09 | B199: Mitchell | C199: 191 | D199: Bellen
A200: 2010-06-26 | B200: Sarah | C200: 120 | D200: Bellen
A201: 2010-05-10 | B201: Carol | C201: 155 | D201: Sunshine
A202: 2010-05-03 | B202: Manavbir | C202: 199 | D202: Sunshine
... 575 more rows

Sheet DA-PivotTable
A1: Date | B1: SalesRep | C1: Sales | D1: Product (boomerangs) | G1: Data Analysis Data Set Rules:
A2: 2010-05-21 | B2: Denise | C2: 111 | D2: Bellen | F2: 1 | G2: Field names (column headers) are in first row of data set
A3: 2010-04-30 | B3: Thongtara | C3: 167 | D3: Bellen | F3: 2 | G3: Records are in rows (Records are things like transactions or student information in a data base)
A4: 2010-04-19 | B4: Sykes | C4: 191 | D4: Sunshine | F4: 3 | G4: Blank cells or row headers or column headers surround entire data set
A5: 2010-06-17 | B5: Ewelina | C5: 110 | D5: Carlota | F5: 4 | G5: No blanks in data set or field names (not 100% mandatory, but if you don't there will be some problems).
A6: 2010-07-22 | B6: Janita | C6: 146 | D6: Carlota | F6: 5 | G6: Use Data Analysis Ribbon in Excel 2007
A7: 2010-05-16 | B7: Elain | C7: 177 | D7: Sunshine
A8: 2010-06-05 | B8: Gianna | C8: 137 | D8: Carlota | G8: The key to PivotTables:
A9: 2010-05-13 | B9: Richard | C9: 116 | D9: Bellen | F9: 1 | G9: Draw a picture of the table before you start
A10: 2010-05-14 | B10: Elain | C10: 166 | D10: Sunshine | F10: 2 | G10: Drag and drop field to column and row header area
A11: 2010-06-12 | B11: Michael | C11: 193 | D11: Bellen | F11: 3 | G11: field that you want to make calculations upon are dragged to the Values area
A12: 2010-05-22 | B12: Ewelina | C12: 105 | D12: Sunset | F12: 4 | G12: Date fields can be grouped by right-clicking the date field in the PivotTable.
A13: 2010-07-19 | B13: Michelle | C13: 189 | D13: Carlota
A14: 2010-05-12 | B14: Jason | C14: 122 | D14: Majestic Beaut
A15: 2010-06-05 | B15: Craig | C15: 196 | D15: Sunshine
A16: 2010-05-23 | B16: Sarah | C16: 161 | D16: Sunshine
A17: 2010-05-29 | B17: Mansa | C17: 197 | D17: Majestic Beaut
A18: 2010-07-21 | B18: Michelle | C18: 113 | D18: Sunset
A19: 2010-06-30 | B19: Shari | C19: 111 | D19: Bellen
A20: 2010-04-19 | B20: Richard | C20: 164 | D20: Sunshine
A21: 2010-06-19 | B21: Christina | C21: 167 | D21: Majestic Beaut
A22: 2010-07-01 | B22: Denise | C22: 129 | D22: Bellen
A23: 2010-04-29 | B23: Richard | C23: 122 | D23: Sunshine
A24: 2010-03-27 | B24: Thongtara | C24: 132 | D24: Sunshine
A25: 2010-04-13 | B25: Michelle | C25: 178 | D25: Carlota
A26: 2010-07-18 | B26: Michelle | C26: 199 | D26: Bellen
A27: 2010-05-27 | B27: Shari | C27: 181 | D27: Majestic Beaut
A28: 2010-06-15 | B28: Carol | C28: 110 | D28: Carlota
A29: 2010-04-08 | B29: Kaur | C29: 104 | D29: Sunset
A30: 2010-06-23 | B30: Mitchell | C30: 110 | D30: Sunshine
A31: 2010-06-21 | B31: Debra | C31: 185 | D31: Carlota
A32: 2010-05-01 | B32: Manavbir | C32: 183 | D32: Sunset
A33: 2010-07-07 | B33: Sykes | C33: 143 | D33: Sunset
A34: 2010-07-12 | B34: Elain | C34: 120 | D34: Carlota
A35: 2010-06-22 | B35: Michelle | C35: 147 | D35: Sunshine
A36: 2010-05-15 | B36: Jason | C36: 117 | D36: Sunshine
A37: 2010-03-31 | B37: Mansa | C37: 128 | D37: Bellen
A38: 2010-04-16 | B38: Shari | C38: 110 | D38: Sunshine
A39: 2010-05-23 | B39: Kaur | C39: 158 | D39: Carlota
A40: 2010-04-09 | B40: Manavbir | C40: 133 | D40: Sunset
A41: 2010-05-17 | B41: Debra | C41: 190 | D41: Majestic Beaut
A42: 2010-07-13 | B42: Sarah | C42: 138 | D42: Sunshine
A43: 2010-04-01 | B43: Daniel | C43: 143 | D43: Sunset
A44: 2010-04-12 | B44: Manavbir | C44: 167 | D44: Carlota
A45: 2010-04-02 | B45: Thongtara | C45: 135 | D45: Carlota
A46: 2010-05-22 | B46: Carol | C46: 125 | D46: Sunshine
A47: 2010-07-08 | B47: Janita | C47: 107 | D47: Carlota
A48: 2010-06-10 | B48: Carol | C48: 162 | D48: Bellen
A49: 2010-07-13 | B49: Thongtara | C49: 192 | D49: Majestic Beaut
A50: 2010-06-05 | B50: Daniel | C50: 152 | D50: Carlota
A51: 2010-04-28 | B51: Gianna | C51: 155 | D51: Majestic Beaut
A52: 2010-07-08 | B52: Kaur | C52: 155 | D52: Sunshine
A53: 2010-05-06 | B53: Mansa | C53: 145 | D53: Sunshine
A54: 2010-07-10 | B54: Janita | C54: 149 | D54: Carlota
A55: 2010-06-24 | B55: Kaur | C55: 180 | D55: Sunset
A56: 2010-05-07 | B56: Yla-Katrina | C56: 190 | D56: Bellen
A57: 2010-07-01 | B57: Richard | C57: 127 | D57: Sunset
A58: 2010-03-30 | B58: Christina | C58: 114 | D58: Carlota
A59: 2010-04-18 | B59: Carol | C59: 191 | D59: Majestic Beaut
A60: 2010-07-02 | B60: Sykes | C60: 197 | D60: Sunshine
A61: 2010-05-09 | B61: Sykes | C61: 186 | D61: Bellen
A62: 2010-06-10 | B62: Gianna | C62: 174 | D62: Carlota
A63: 2010-05-29 | B63: Yla-Katrina | C63: 114 | D63: Carlota
A64: 2010-07-05 | B64: Jason | C64: 121 | D64: Bellen
A65: 2010-03-28 | B65: Debra | C65: 134 | D65: Sunshine
A66: 2010-06-15 | B66: Carol | C66: 174 | D66: Carlota
A67: 2010-05-06 | B67: Craig | C67: 178 | D67: Majestic Beaut
A68: 2010-06-01 | B68: Ewelina | C68: 132 | D68: Sunshine
A69: 2010-06-02 | B69: Sarah | C69: 148 | D69: Carlota
A70: 2010-04-05 | B70: Michelle | C70: 120 | D70: Sunset
A71: 2010-06-01 | B71: Thongtara | C71: 199 | D71: Sunshine
A72: 2010-03-31 | B72: Michelle | C72: 109 | D72: Majestic Beaut
A73: 2010-06-27 | B73: Gianna | C73: 138 | D73: Carlota
A74: 2010-05-27 | B74: Thongtara | C74: 153 | D74: Bellen
A75: 2010-06-19 | B75: Janita | C75: 122 | D75: Bellen
A76: 2010-07-21 | B76: Michael | C76: 154 | D76: Bellen
A77: 2010-06-19 | B77: Jason | C77: 174 | D77: Sunset
A78: 2010-07-14 | B78: Denise | C78: 181 | D78: Bellen
A79: 2010-06-25 | B79: Sarah | C79: 113 | D79: Bellen
A80: 2010-04-01 | B80: Nelia | C80: 177 | D80: Sunset
A81: 2010-07-12 | B81: Mitchell | C81: 138 | D81: Majestic Beaut
A82: 2010-05-21 | B82: Denise | C82: 175 | D82: Bellen
A83: 2010-04-16 | B83: Ewelina | C83: 149 | D83: Majestic Beaut
A84: 2010-05-11 | B84: Shari | C84: 140 | D84: Majestic Beaut
A85: 2010-05-03 | B85: Michelle | C85: 152 | D85: Carlota
A86: 2010-04-20 | B86: Jason | C86: 104 | D86: Bellen
A87: 2010-06-07 | B87: Daniel | C87: 116 | D87: Majestic Beaut
A88: 2010-05-06 | B88: Sykes | C88: 131 | D88: Carlota
A89: 2010-04-07 | B89: Thongtara | C89: 135 | D89: Sunshine
A90: 2010-06-04 | B90: Michelle | C90: 164 | D90: Sunset
A91: 2010-03-27 | B91: Manavbir | C91: 178 | D91: Sunset
A92: 2010-04-08 | B92: Debra | C92: 139 | D92: Sunshine
A93: 2010-05-04 | B93: Carol | C93: 160 | D93: Carlota
A94: 2010-07-07 | B94: Ewelina | C94: 162 | D94: Bellen
A95: 2010-06-19 | B95: Shari | C95: 103 | D95: Sunshine
A96: 2010-05-09 | B96: Kaur | C96: 200 | D96: Carlota
A97: 2010-04-21 | B97: Mansa | C97: 132 | D97: Sunset
A98: 2010-04-12 | B98: Sarah | C98: 133 | D98: Sunshine
A99: 2010-06-23 | B99: Mansa | C99: 187 | D99: Majestic Beaut
A100: 2010-07-22 | B100: Michael | C100: 173 | D100: Majestic Beaut
A101: 2010-06-07 | B101: Sykes | C101: 112 | D101: Sunshine
A102: 2010-04-22 | B102: Daniel | C102: 132 | D102: Bellen
A103: 2010-04-27 | B103: Sykes | C103: 112 | D103: Sunset
A104: 2010-04-23 | B104: Daniel | C104: 131 | D104: Carlota
A105: 2010-05-25 | B105: Craig | C105: 175 | D105: Sunshine
A106: 2010-07-19 | B106: Craig | C106: 158 | D106: Sunshine
A107: 2010-04-26 | B107: Ewelina | C107: 148 | D107: Bellen
A108: 2010-06-09 | B108: Daniel | C108: 187 | D108: Sunset
A109: 2010-07-07 | B109: Mansa | C109: 168 | D109: Majestic Beaut
A110: 2010-04-25 | B110: Nelia | C110: 116 | D110: Majestic Beaut
A111: 2010-03-26 | B111: Jason | C111: 122 | D111: Carlota
A112: 2010-05-21 | B112: Debra | C112: 160 | D112: Sunshine
A113: 2010-05-13 | B113: Debra | C113: 192 | D113: Carlota
A114: 2010-05-19 | B114: Christina | C114: 154 | D114: Sunset
A115: 2010-04-06 | B115: Jason | C115: 145 | D115: Sunshine
A116: 2010-05-03 | B116: Richard | C116: 178 | D116: Sunshine
A117: 2010-05-04 | B117: Sarah | C117: 112 | D117: Sunset
A118: 2010-07-04 | B118: Elain | C118: 115 | D118: Carlota
A119: 2010-05-25 | B119: Mansa | C119: 146 | D119: Carlota
A120: 2010-06-15 | B120: Debra | C120: 109 | D120: Majestic Beaut
A121: 2010-07-21 | B121: Denise | C121: 172 | D121: Carlota
A122: 2010-05-22 | B122: Daniel | C122: 146 | D122: Sunshine
A123: 2010-06-30 | B123: Richard | C123: 144 | D123: Bellen
A124: 2010-06-23 | B124: Mitchell | C124: 146 | D124: Carlota
A125: 2010-04-28 | B125: Kaur | C125: 105 | D125: Sunshine
A126: 2010-06-25 | B126: Ewelina | C126: 134 | D126: Carlota
A127: 2010-07-11 | B127: Richard | C127: 118 | D127: Carlota
A128: 2010-07-10 | B128: Debra | C128: 132 | D128: Bellen
A129: 2010-05-27 | B129: Carol | C129: 117 | D129: Sunset
A130: 2010-04-03 | B130: Michelle | C130: 194 | D130: Carlota
A131: 2010-04-27 | B131: Debra | C131: 122 | D131: Sunshine
A132: 2010-06-29 | B132: Michelle | C132: 134 | D132: Sunset
A133: 2010-07-11 | B133: Sykes | C133: 134 | D133: Sunshine
A134: 2010-03-30 | B134: Elain | C134: 125 | D134: Sunset
A135: 2010-04-05 | B135: Carol | C135: 115 | D135: Majestic Beaut
A136: 2010-04-04 | B136: Christina | C136: 105 | D136: Sunset
A137: 2010-06-24 | B137: Christina | C137: 179 | D137: Bellen
A138: 2010-06-22 | B138: Elain | C138: 114 | D138: Sunset
A139: 2010-06-06 | B139: Elain | C139: 176 | D139: Carlota
A140: 2010-04-25 | B140: Shari | C140: 194 | D140: Sunset
A141: 2010-05-18 | B141: Mitchell | C141: 170 | D141: Majestic Beaut
A142: 2010-07-14 | B142: Ewelina | C142: 144 | D142: Carlota
A143: 2010-05-06 | B143: Christina | C143: 175 | D143: Carlota
A144: 2010-07-22 | B144: Michelle | C144: 185 | D144: Sunshine
A145: 2010-07-02 | B145: Carol | C145: 133 | D145: Majestic Beaut
A146: 2010-05-21 | B146: Sarah | C146: 131 | D146: Sunset
A147: 2010-06-15 | B147: Mansa | C147: 163 | D147: Sunshine
A148: 2010-03-26 | B148: Denise | C148: 120 | D148: Sunshine
A149: 2010-05-04 | B149: Manavbir | C149: 136 | D149: Majestic Beaut
A150: 2010-03-28 | B150: Gianna | C150: 195 | D150: Sunset
A151: 2010-04-21 | B151: Yla-Katrina | C151: 157 | D151: Sunset
A152: 2010-05-27 | B152: Michelle | C152: 187 | D152: Majestic Beaut
A153: 2010-05-15 | B153: Christina | C153: 185 | D153: Carlota
A154: 2010-07-10 | B154: Jason | C154: 154 | D154: Sunset
A155: 2010-06-13 | B155: Jason | C155: 187 | D155: Sunshine
A156: 2010-07-14 | B156: Gianna | C156: 142 | D156: Sunshine
A157: 2010-07-19 | B157: Denise | C157: 132 | D157: Majestic Beaut
A158: 2010-07-11 | B158: Mitchell | C158: 127 | D158: Sunset
A159: 2010-05-27 | B159: Mansa | C159: 184 | D159: Majestic Beaut
A160: 2010-06-23 | B160: Thongtara | C160: 164 | D160: Bellen
A161: 2010-04-28 | B161: Sykes | C161: 157 | D161: Sunset
A162: 2010-07-05 | B162: Craig | C162: 186 | D162: Majestic Beaut
A163: 2010-05-23 | B163: Elain | C163: 135 | D163: Carlota
A164: 2010-06-25 | B164: Janita | C164: 194 | D164: Carlota
A165: 2010-04-05 | B165: Thongtara | C165: 177 | D165: Sunset
A166: 2010-05-05 | B166: Mitchell | C166: 143 | D166: Carlota
A167: 2010-05-18 | B167: Manavbir | C167: 152 | D167: Sunset
A168: 2010-06-03 | B168: Nelia | C168: 101 | D168: Sunset
A169: 2010-05-05 | B169: Janita | C169: 110 | D169: Majestic Beaut
A170: 2010-06-15 | B170: Denise | C170: 124 | D170: Carlota
A171: 2010-05-08 | B171: Christina | C171: 102 | D171: Sunshine
A172: 2010-07-16 | B172: Richard | C172: 139 | D172: Sunset
A173: 2010-05-06 | B173: Janita | C173: 152 | D173: Bellen
A174: 2010-05-17 | B174: Janita | C174: 168 | D174: Majestic Beaut
A175: 2010-04-01 | B175: Michael | C175: 151 | D175: Majestic Beaut
A176: 2010-05-06 | B176: Gianna | C176: 137 | D176: Sunshine
A177: 2010-07-13 | B177: Janita | C177: 104 | D177: Carlota
A178: 2010-04-09 | B178: Nelia | C178: 139 | D178: Carlota
A179: 2010-07-04 | B179: Daniel | C179: 147 | D179: Sunshine
A180: 2010-07-09 | B180: Mansa | C180: 190 | D180: Majestic Beaut
A181: 2010-07-19 | B181: Nelia | C181: 159 | D181: Carlota
A182: 2010-03-28 | B182: Manavbir | C182: 112 | D182: Carlota
A183: 2010-05-08 | B183: Christina | C183: 182 | D183: Majestic Beaut
A184: 2010-05-16 | B184: Richard | C184: 121 | D184: Sunset
A185: 2010-05-25 | B185: Kaur | C185: 181 | D185: Majestic Beaut
A186: 2010-06-03 | B186: Craig | C186: 104 | D186: Bellen
A187: 2010-06-01 | B187: Sykes | C187: 194 | D187: Sunset
A188: 2010-03-29 | B188: Christina | C188: 178 | D188: Sunshine
A189: 2010-06-27 | B189: Carol | C189: 142 | D189: Sunshine
A190: 2010-04-09 | B190: Mitchell | C190: 191 | D190: Bellen
A191: 2010-06-26 | B191: Sarah | C191: 120 | D191: Bellen
A192: 2010-05-10 | B192: Carol | C192: 155 | D192: Sunshine
A193: 2010-05-03 | B193: Manavbir | C193: 199 | D193: Sunshine
A194: 2010-05-12 | B194: Thongtara | C194: 106 | D194: Sunshine
A195: 2010-04-28 | B195: Elain | C195: 149 | D195: Majestic Beaut
A196: 2010-06-09 | B196: Michelle | C196: 158 | D196: Bellen
A197: 2010-04-01 | B197: Gianna | C197: 144 | D197: Bellen
A198: 2010-05-13 | B198: Daniel | C198: 143 | D198: Bellen
A199: 2010-07-09 | B199: Daniel | C199: 177 | D199: Sunshine
A200: 2010-04-03 | B200: Manavbir | C200: 142 | D200: Majestic Beaut
... 568 more rows

Sheet ROUND
B1: Rules for When You Must Round:
A2: 1 | B2: You are required to round to a certain position like with money where you are required to round to the penny or hundredths position.
A3: 2 | B3: You are multiplying or dividing numbers with decimals.
A4: 3 | B4: You will use the formula result in a subsequent formula calculation.
B5: When all three of these things are true, you must sue the ROUND function or you may get the wrong answer.
B7: Assumption Table contains Formula Inputs
B8: Commission Rate | C8: 0.045
B10: SalesRep | C10: Sales | D10: Earned Commission | F10: Total Commissions | H10: Your Boss Says It is: | J10: SalesRep | K10: Sales | L10: Calculate with ROUND | N10: Total Commissions
B11: Elain | C11: 1161 | H11: =SUM(ROUND(D11:D34,2)) -> 0 | J11: Elain | K11: 1161
B12: Carol | C12: 1321 | J12: Carol | K12: 1321
B13: Gianna | C13: 1039 | F13: Who is right? | J13: Gianna | K13: 1039
B14: Jason | C14: 1761 | J14: Jason | K14: 1761
B15: Michelle | C15: 1561 | J15: Michelle | K15: 1561
B16: Shari | C16: 1868 | J16: Shari | K16: 1868
B17: Denise | C17: 2787 | J17: Denise | K17: 2787
B18: Daniel | C18: 1849 | J18: Daniel | K18: 1849
B19: Sarah | C19: 2627 | J19: Sarah | K19: 2627
B20: Christina | C20: 2165 | J20: Christina | K20: 2165
B21: Janita | C21: 1589 | J21: Janita | K21: 1589
B22: Debra | C22: 2603 | J22: Debra | K22: 2603
B23: Nelia | C23: 2366 | J23: Nelia | K23: 2366
B24: Manavbir | C24: 2107 | J24: Manavbir | K24: 2107
B25: Richard | C25: 2886 | J25: Richard | K25: 2886
B26: Yla-Katrina | C26: 1886 | J26: Yla-Katrina | K26: 1886
B27: Kaur | C27: 2177 | J27: Kaur | K27: 2177
B28: Mansa | C28: 1873 | J28: Mansa | K28: 1873
B29: Mitchell | C29: 2164 | J29: Mitchell | K29: 2164
B30: Craig | C30: 1394 | J30: Craig | K30: 1394
B31: Sykes | C31: 2263 | J31: Sykes | K31: 2263
B32: Ewelina | C32: 2242 | J32: Ewelina | K32: 2242
B33: Michael | C33: 1474 | J33: Michael | K33: 1474
B34: Thongtara | C34: 1998 | J34: Thongtara | K34: 1998

Sheet ROUND (an) (hidden)
B1: Rules for When You Must Round:
A2: 1 | B2: You are required to round to a certain position like with money where you are required to round to the penny or hundredths position.
A3: 2 | B3: You are multiplying or dividing numbers with decimals.
A4: 3 | B4: You will use the formula result in a subsequent formula calculation.
B5: When all three of these things are true, you must sue the ROUND function or you may get the wrong answer.
B7: Assumption Table contains Formula Inputs
B8: Commission Rate | C8: 0.045
B10: SalesRep | C10: Sales | D10: Earned Commision | F10: Total Commissions | H10: Your Boss Says It is: | J10: SalesRep | K10: Sales | L10: Calculate with ROUND | N10: Total Commissions
B11: Elain | C11: 1161 | D11: =C11*C$8 -> 52.245 | F11: =SUM(D11:D34) -> 2122.245 | H11: =SUM(ROUND(D11:D34,2)) -> 2122.32 | J11: Elain | K11: 1161 | L11: =ROUND(K11*C$8,2) -> 52.25 | N11: =SUM(L11:L34) -> 2122.32
B12: Carol | C12: 1321 | D12: =C12*C$8 -> 59.445 | J12: Carol | K12: 1321 | L12: =ROUND(K12*C$8,2) -> 59.45
B13: Gianna | C13: 1039 | D13: 46.755 | F13: Who is right? | J13: Gianna | K13: 1039 | L13: 46.76
B14: Jason | C14: 1761 | D14: 79.245 | J14: Jason | K14: 1761 | L14: 79.25
B15: Michelle | C15: 1561 | D15: 70.245 | J15: Michelle | K15: 1561 | L15: 70.25
B16: Shari | C16: 1868 | D16: 84.06 | J16: Shari | K16: 1868 | L16: 84.06
B17: Denise | C17: 2787 | D17: 125.415 | J17: Denise | K17: 2787 | L17: 125.42
B18: Daniel | C18: 1849 | D18: 83.205 | J18: Daniel | K18: 1849 | L18: 83.21
B19: Sarah | C19: 2627 | D19: 118.215 | J19: Sarah | K19: 2627 | L19: 118.22
B20: Christina | C20: 2165 | D20: 97.425 | J20: Christina | K20: 2165 | L20: 97.43
B21: Janita | C21: 1589 | D21: 71.505 | J21: Janita | K21: 1589 | L21: 71.51
B22: Debra | C22: 2603 | D22: 117.135 | J22: Debra | K22: 2603 | L22: 117.14
B23: Nelia | C23: 2366 | D23: 106.47 | J23: Nelia | K23: 2366 | L23: 106.47
B24: Manavbir | C24: 2107 | D24: 94.815 | J24: Manavbir | K24: 2107 | L24: 94.82
B25: Richard | C25: 2886 | D25: 129.87 | J25: Richard | K25: 2886 | L25: 129.87
B26: Yla-Katrina | C26: 1886 | D26: 84.87 | J26: Yla-Katrina | K26: 1886 | L26: 84.87
B27: Kaur | C27: 2177 | D27: 97.965 | J27: Kaur | K27: 2177 | L27: 97.97
B28: Mansa | C28: 1873 | D28: 84.285 | J28: Mansa | K28: 1873 | L28: 84.29
B29: Mitchell | C29: 2164 | D29: 97.38 | J29: Mitchell | K29: 2164 | L29: 97.38
B30: Craig | C30: 1394 | D30: 62.73 | J30: Craig | K30: 1394 | L30: 62.73
B31: Sykes | C31: 2263 | D31: 101.835 | J31: Sykes | K31: 2263 | L31: 101.84
B32: Ewelina | C32: 2242 | D32: 100.89 | J32: Ewelina | K32: 2242 | L32: 100.89
B33: Michael | C33: 1474 | D33: 66.33 | J33: Michael | K33: 1474 | L33: 66.33
B34: Thongtara | C34: 1998 | D34: 89.91 | J34: Thongtara | K34: 1998 | L34: 89.91

Sheet Make Template

Sheet Make Template (an) (hidden)
A1: Assumptions | I1: Break Even x | J1: Break Even y | K1: ="about "&I2&" units" -> about 250 units
A2: Time | B2: Units Start | C2: Units increment | D2: Unit Price | E2: Unit Variable Cost | F2: Total Fixed Costs | I2: =INDEX($A$6:$A$16,MATCH(0,$G$6:$G$16)) -> 250 | J2: =INDEX($B$6:$B$16,MATCH(0,$G$6:$G$16)) -> 13750
A3: Month | B3: 0 | C3: 50 | D3: 55 | E3: 35 | F3: 5000
A5: Units | B5: Sales | C5: Variable Cost | D5: Contribution Margin | E5: Fixed | F5: Total Costs | G5: Net Income
A6: =B3 -> 0 | B6: =$A6*D$3 -> 0 | C6: 0 | D6: =B6-C6 -> 0 | E6: =F$3 -> 5000 | F6: =C6+E6 -> 5000 | G6: =B6-F6 -> -5000
A7: =A6+C$3 -> 50 | B7: 2750 | C7: 1750 | D7: 1000 | E7: 5000 | F7: 6750 | G7: -4000
A8: 100 | B8: 5500 | C8: 3500 | D8: 2000 | E8: 5000 | F8: 8500 | G8: -3000
A9: 150 | B9: 8250 | C9: 5250 | D9: 3000 | E9: 5000 | F9: 10250 | G9: -2000
A10: 200 | B10: 11000 | C10: 7000 | D10: 4000 | E10: 5000 | F10: 12000 | G10: -1000
A11: 250 | B11: 13750 | C11: 8750 | D11: 5000 | E11: 5000 | F11: 13750 | G11: 0
A12: 300 | B12: 16500 | C12: 10500 | D12: 6000 | E12: 5000 | F12: 15500 | G12: 1000
A13: 350 | B13: 19250 | C13: 12250 | D13: 7000 | E13: 5000 | F13: 17250 | G13: 2000
A14: 400 | B14: 22000 | C14: 14000 | D14: 8000 | E14: 5000 | F14: 19000 | G14: 3000
A15: 450 | B15: 24750 | C15: 15750 | D15: 9000 | E15: 5000 | F15: 20750 | G15: 4000
A16: 500 | B16: 27500 | C16: 17500 | D16: 10000 | E16: 5000 | F16: 22500 | G16: 5000
